Cogmind - Beta 17.1 @@@ ROGUE MODE // 2026.09.20 @ 17:51:11 Player: the Result: Destroyed by Executioner with Helical Railgun Performance ------------- Evolutions (7) 3500 Regions Visited (26) 5200 Robots Destroyed (362) 1810 Value Destroyed (14333) 14333 Prototype IDs (127) 2540 Alien Tech Used (6) 1200 Bonus (25210) 25210 TOTAL SCORE: 53793 Bonus ------- High Alert Combat Kills 669 Follower Combat Kills 2847 Network Hubs Disabled 600 Registered with UFD 300 Met Optimus in HQ 500 Met Zhirov 300 Met Warlord at Base 500 MAIN.C Attacked Warlord 500 Warlord Defense Kills 5408 Built Enhanced Grunts 300 A7 Reached Mainframe 300 Met R17 at Cetus 500 Destroyed Superfortress 15000 Met Optimus at Protoforge 1000 Friendly Fire -3514 Cogmind --------- Core Integrity 0/1300 Matter 180/300 Energy 100/100 System Corruption 17% Temperature Cool (0) Movement Core (50) Location -3/Protoforge Parts ------- > --- POWER (2) -------- (None) > --- PROPULSION (6) --- (None) > --- UTILITY (11) ----- (None) > --- WEAPON (2) ------- (None) > --- INVENTORY (5) ---- EMDS Sigix Broadsword Peak State ------------ > --- POWER ------------ Micro Antimatter Reactor Micro Antimatter Reactor > --- PROPULSION ------- Cooled Antigrav System Antigrav Array Antigrav Array Combat Linear Gravjet > --- UTILITY ---------- High-capacity Storage Unit Experimental Optical Array Spectral Analyzer Advanced Signal Interpreter Advanced Terrain Scan Processor Advanced Melee Analysis Suite Advanced Transmission Jammer Centrium Medium Armor Plating Centrium Medium Armor Plating Graphene Brace Advanced Hacking Suite > --- WEAPON ----------- Sigix Broadsword > --- INVENTORY -------- Micro Antimatter Reactor Advanced Sensor Array Long-range Terrain Scanner Precision Matter Filter Launcher Loader Quantum Capacitor Microactuators Thermal Barrier Dimensional Node Initializer Transdimensional Reconstructor Subatomic Replicator Vortex Shotgun Vortex Shotgun EMDS Advanced Micro-nuke Launcher CPS Tube RU-N14's Throwing Claymores v3 [Rating: 180] Favorites ----------- Power Cooled Ion Engine Engine Cooled Ion Engine Power Core Light Nuclear Core Reactor Compact Particle Reactor Propulsion Light Treads Treads Light Treads Leg Experimental VSS Leg Wheel Armored Wheel Hover Unit Antigrav Array Flight Unit Improved Flight Unit Utility High-capacity Storage Unit Device Seismic Detector Storage High-capacity Storage Unit Processor Advanced Targeting Computer Hackware Advanced Hacking Suite Protection Layered Medium Armor Plating Artifact Phase Redirector Weapon Enhanced Autogun Energy Gun Overtuned Quantum Rifle Energy Cannon Beam Cannon Ballistic Gun Enhanced Autogun Ballistic Cannon Assault Cannon Launcher Rocket Array Special Weapon RU-N14's Throwing Claymores v3 Impact Weapon Powered Hammer Slashing Weapon Katana Special Melee Weapon Advanced Datajack Build | -11 -10 -10 -9 -9 -8 -8 -8 -8 -6 -6 -6 -6 -6 -5 -5 -5 -5 -4 -4 -4 -4 -4 -3 -3 -3 -3 ------- Run | Yrd Mat Min Mat Min Mat Sto Rec Scr Fac Ext Cet Arc Hub Fac Upp Upp Zhi Pro Fac Upp Upp War Pro Res Qua Frg Slots Evolved 14 | . . . 2 . 2 . . . 4 . . . . 2 . . . . 2 . . . . 2 . . Power 1 | . . . . . . . . . . . . . . . . . . . . . . . . 1 . . Propulsion 4 | . . . 1 . 1 . . . . . . . . 2 . . . . . . . . . . . . Utility 9 | . . . 1 . 1 . . . 4 . . . . . . . . . 2 . . . . 1 . . Weapon . | . . . . . . . . . . . . . . . . . . . . . . . . . . . Parts Attached 251 | 7 8 7 24 . 33 25 3 7 17 4 11 2 6 13 1 2 2 3 7 . . 19 . 12 10 28 Power 23 | 1 1 1 2 . 2 2 . . . 1 1 1 . . . . 1 . 1 . . 2 . 1 3 3 Engine 9 | 1 . 1 2 . 2 2 . . . 1 . . . . . . . . . . . . . . . . Core 3 | . 1 . . . . . . . . . . . . . . . . . . . . 1 . . . 1 Reactor 11 | . . . . . . . . . . . 1 1 . . . . 1 . 1 . . 1 . 1 3 2 Propulsion 65 | 2 . 3 10 . 16 11 2 2 3 . 1 . 2 2 . . . 1 . . . 3 . . 2 5 Treads 37 | 2 . 1 10 . 13 8 2 . . . 1 . . . . . . . . . . . . . . . Leg 4 | . . . . . 1 . . . . . . . . . . . . . . . . 1 . . . 2 Wheel 11 | . . 2 . . . 1 . 2 3 . . . . . . . . . . . . . . . . 3 Hover 11 | . . . . . 2 . . . . . . . 2 2 . . . 1 . . . 2 . . 2 . Flight 2 | . . . . . . 2 . . . . . . . . . . . . . . . . . . . . Utility 97 | 2 3 1 7 . 6 4 1 2 12 3 6 1 2 8 1 2 1 . 5 . . 6 . 7 4 13 Device 42 | 1 2 1 2 . 1 1 . 1 4 2 3 . . 4 . 1 . . 3 . . 4 . 4 1 7 Storage 8 | 1 1 . 1 . . . 1 1 . . 1 . . 2 . . . . . . . . . . . . Processor 22 | . . . 2 . 2 2 . . 2 . . . 1 . . 1 . . 2 . . 2 . 1 2 5 Hackware 5 | . . . . . . . . . 2 . . 1 . 1 . . 1 . . . . . . . . . Protection 19 | . . . 2 . 3 1 . . 4 1 2 . 1 1 1 . . . . . . . . 2 . 1 Artifact 1 | . . . . . . . . . . . . . . . . . . . . . . . . . 1 . Weapon 66 | 2 4 2 5 . 9 8 . 3 2 . 3 . 2 3 . . . 2 1 . . 8 . 4 1 7 Energy Gun 14 | 1 2 . 1 . 1 3 . 1 . . . . . . . . . . . . . 3 . . . 2 Energy Cannon 7 | . 2 . . . 1 . . . . . 1 . . 1 . . . . . . . . . 1 . 1 Ballistic Gun 21 | 1 . . 4 . 5 3 . 1 1 . 1 . 2 . . . . 2 . . . . . . . 1 Ballistic Cannon 4 | . . 1 . . . . . . 1 . . . . 1 . . . . . . . . . . . 1 Launcher 9 | . . 1 . . 1 1 . . . . . . . 1 . . . . 1 . . 2 . 1 . 1 Special Weapon 7 | . . . . . . . . 1 . . 1 . . . . . . . . . . 3 . 1 . 1 Impact Weapon 1 | . . . . . 1 . . . . . . . . . . . . . . . . . . . . . Slashing Weapon 2 | . . . . . . 1 . . . . . . . . . . . . . . . . . . 1 . Piercing Weapon . | . . . . . . . . . . . . . . . . . . . . . . . . . . . Special Melee Weapon 1 | . . . . . . . . . . . . . . . . . . . . . . . . 1 . . Unidentified Prototypes 52 | . . . 3 . 4 7 . . 1 . 9 . . 2 . . 2 . . . . 10 . 3 4 7 Parts Lost 43 | . . 6 1 . 3 3 . . 1 1 . . 10 . . . . . . . . 2 . . . 16 Power 7 | . . 1 . . 1 . . . . . . . 1 . . . . . . . . . . . . 4 Propulsion 12 | . . 3 . . . 1 . . . 1 . . 4 . . . . . . . . . . . . 3 Utility 15 | . . . . . 2 2 . . 1 . . . 3 . . . . . . . . 1 . . . 6 Weapon 9 | . . 2 1 . . . . . . . . . 2 . . . . . . . . 1 . . . 3 Highest Loss Streak 10 | . . 3 1 . 2 1 . . 1 1 . . 10 . . . . . . . . 1 . . . 4 To Critical Strikes 1 | . . 1 . . . . . . . . . . . . . . . . . . . . . . . . Average Backups 17 | 3 6 10 16 20 18 18 19 19 20 20 20 21 20 13 16 16 16 16 16 16 16 14 16 17 16 14 Power 1 | 1 1 1 1 2 1 2 2 1 1 1 1 1 1 . . . . 1 . 1 1 1 1 1 1 . Propulsion 4 | 1 . . 4 7 6 5 6 6 5 5 4 5 6 3 3 3 3 3 3 2 2 . 2 1 . . Utility 6 | . 2 4 5 6 5 5 4 6 9 9 9 8 7 5 7 7 6 5 5 5 5 4 5 6 6 8 Weapon 4 | . 1 3 3 4 5 6 6 4 3 3 3 5 4 2 4 4 4 4 4 5 5 5 6 6 5 3 Tool/Special . | . . . . . . . . . . . . . . . . . . . . . . . . . . . Unused Backups 96 | . 1 . 4 . 7 1 1 14 2 . 27 1 12 2 . . . . . . . 8 . 3 6 7 Power 10 | . . . 1 . . 1 . 2 . . 4 . 1 . . . . . . . . . . 1 . . Propulsion 16 | . . . . . 2 . . 5 1 . 3 . 2 1 . . . . . . . 2 . . . . Utility 50 | . 1 . 1 . 1 . . 7 1 . 16 1 7 . . . . . . . . 4 . 1 5 5 Weapon 18 | . . . 1 . 4 . 1 . . . 4 . 2 1 . . . . . . . 2 . 1 1 1 Tool/Special 2 | . . . 1 . . . . . . . . . . . . . . . . . . . . . . 1 Average Slot Usage (%) 92 | . 99 95 98 100 99 98 100 91 90 91 92 93 90 82 88 88 87 88 88 89 89 85 82 80 83 78 Engine 4 | . 6 2 11 11 8 9 9 9 6 6 2 . . . . . . . . . . . . . . . Reactor 2 | . . . . . . . . . . . 3 6 5 4 5 5 5 5 5 5 5 5 5 4 6 7 Treads 13 | . 28 22 28 33 36 35 36 10 . . . . . . . . . . . . . . . . . . Wheel 7 | . . 3 3 . . . . 19 23 25 25 26 24 . . . . . . . . . . . . 3 Hover 6 | . . . . . . . . . . . . . . 22 23 23 23 23 21 21 21 21 21 19 18 10 Device 10 | . 14 14 10 11 6 1 1 1 13 12 7 13 11 13 11 11 13 17 19 21 21 18 19 18 18 14 Storage 8 | . 14 14 11 11 9 9 16 14 6 6 6 6 6 5 5 5 5 5 5 5 5 5 5 4 4 4 Processor 12 | . . . 4 . 10 16 18 18 13 13 13 13 13 13 11 11 11 11 15 15 15 15 15 18 19 21 Hackware 2 | . . . . . . . . . 5 6 6 6 6 10 11 11 8 5 5 5 5 5 5 4 4 2 Protection 4 | . . . 5 11 9 8 . . 5 6 11 6 6 1 4 5 5 5 5 5 5 4 5 4 4 3 Energy Gun 2 | . 8 . 2 . . . . 4 6 6 6 6 5 . . . . . . . . . . . . . Energy Cannon 1 | . 13 22 . . . . . . . . . . . . . . . . . . . . . . . . Ballistic Gun 7 | . 5 . 15 12 17 16 18 12 6 6 3 4 3 . . . . 6 6 5 5 2 . . . . Slashing Weapon 1 | . . . . . . 1 . . . . 2 1 2 4 5 5 5 1 4 5 4 4 . 1 4 2 Peak Build Rating 180 | 7 9 12 19 18 35 36 32 48 64 63 84 76 84 108 98 102 102 106 122 115 116 142 135 151 180 172 Average Rating 65 | 2 8 9 16 17 32 31 32 40 60 60 68 75 74 96 97 99 100 104 113 114 114 115 134 140 160 151 On Entrance 72 | . 7 9 11 18 18 35 32 32 48 60 59 73 73 65 98 97 99 102 106 115 114 114 134 135 146 170 Avg Prop Armor Cover (%) 7 | . . . 11 . . . . . . . . 12 . . . . . . . . . . . . . 5 Naked Turns 1 | . . . . . . . . . . . . . . . . . . . . . . . . . . 1 Heaviest Build 137 | 12 32 32 62 62 70 70 58 104 111 130 137 121 127 75 71 71 72 75 78 74 74 89 88 82 87 110 Greatest Support 89 | 40 40 40 63 60 87 85 82 82 52 44 44 44 52 73 73 73 73 78 78 78 73 79 79 83 89 89 Greatest Overweight (x) 38 | . . 10 1 1 . 1 . 1 2 3 6 38 13 1 . . . . . 1 1 1 1 1 1 24 Average Overweight (x) . | . . . . . . . . . 1 2 2 6 2 . . . . . . . 1 . . . . 1 Largest Inventory Capacity 25 | 8 15 15 20 20 20 20 20 25 25 25 25 25 25 25 20 20 20 20 20 20 20 20 20 20 20 20 Average Capacity 20 | 5 11 15 18 20 20 20 20 23 25 25 25 25 25 17 20 20 20 20 20 20 20 20 20 20 20 19 Most Carried 25 | 5 9 13 20 20 20 20 20 25 25 25 25 25 25 20 20 20 20 20 20 20 20 20 20 20 20 20 Average Carried 19 | 3 6 10 16 19 19 19 20 22 24 24 23 24 24 16 20 20 19 19 19 19 19 16 18 19 19 17 Final Capacity 25 | 8 15 15 20 20 20 20 20 25 25 25 25 25 25 20 20 20 20 20 20 20 20 20 20 20 20 5 Final Carried 25 | 2 9 11 20 20 19 20 20 25 25 25 25 25 21 20 20 20 20 20 20 19 20 18 18 20 20 4 Scrap Suit Usage (%) 7 | . . . . . . . . . 5 28 6 96 88 . . . . . . . . . . . . 1 Parts Cannibalized 14 | . . . . . . . . . 1 9 . 1 2 . . . . . . . . . . . . 1 Class Distribution -------------------- 30% | Mutant 21% | Scavenger-Mutant 10% | Scavenger-Ninja 9% | Commander-Scrapper 8% | Scavenger-Scout 6% | Scavenger-Assassin 4% | Scrapper 3% | Commander-Mutant Dominant Class ---------------- Mutant | -10/Materials Mutant | -10/Mines Mutant | -9/Materials Scavenger-Mutant | -9/Mines Mutant | -8/Materials Scavenger-Mutant | -8/Storage Scavenger-Mutant | -8/Recycling Mutant | -8/Scraptown Scrapper | -6/Factory Commander-Scrapper | -6/Extension Commander-Scrapper | -6/Cetus Commander-Scrapper | -6/Archives Scrapper | -6/Hub_04(d) Scavenger-Ninja | -5/Factory Scavenger-Scout | -5/Upper Caves Scavenger-Scout | -5/Upper Caves Scavenger-Ninja | -5/Zhirov Scavenger-Scout | -4/Proximity Caves Scavenger-Ninja | -4/Factory Scavenger-Assassin | -4/Upper Caves Scavenger-Assassin | -4/Upper Caves Scavenger-Assassin | -4/Warlord Scavenger-Scout | -3/Proximity Caves Scavenger-Scout | -3/Research Scavenger-Ninja | -3/Quarantine Scavenger-Mutant | -3/Protoforge Resources | -11 -10 -10 -9 -9 -8 -8 -8 -8 -6 -6 -6 -6 -6 -5 -5 -5 -5 -4 -4 -4 -4 -4 -3 -3 -3 -3 ----------- Run | Yrd Mat Min Mat Min Mat Sto Rec Scr Fac Ext Cet Arc Hub Fac Upp Upp Zhi Pro Fac Upp Upp War Pro Res Qua Frg Matter Collected 11152 | 277 343 200 735 31 1774 1263 180 97 353 442 332 74 102 485 125 67 . 393 253 32 173 891 339 409 212 1570 Remotely 935 | . . . . . . . . . . . . . . . . . . . . . . 402 339 194 . . Salvage Created 14103 | 150 430 474 978 151 2347 1819 293 . 423 544 244 286 893 529 . 274 . 130 423 . 191 1363 221 512 463 965 Parts 749 | 11 19 18 58 8 134 116 17 . 16 32 29 21 36 38 . 4 . 5 25 . 7 51 15 25 20 44 Haulers Intercepted 27 | . 2 . 5 . 6 5 . . 2 . . . . 1 . . . . 1 . . . . 3 2 . Recyclers Shooed 11 | . . 1 4 . 1 1 . . 1 2 . . . 1 . . . . . . . . . . . . Parts Field Recycled . | . . . . . . . . . . . . . . . . . . . . . . . . . . . Retrieved Matter . | . . . . . . . . . . . . . . . . . . . . . . . . . . . Parts Self-Destructed 27 | . . . . . . . . . . . . . . . . . . 16 . . 1 . 10 . . . Prevented . | . . . . . . . . . . . . . . . . . . . . . . . . . . . Parts Restored . | . . . . . . . . . . . . . . . . . . . . . . . . . . . Kills | -11 -10 -10 -9 -9 -8 -8 -8 -8 -6 -6 -6 -6 -6 -5 -5 -5 -5 -4 -4 -4 -4 -4 -3 -3 -3 -3 ------- Run | Yrd Mat Min Mat Min Mat Sto Rec Scr Fac Ext Cet Arc Hub Fac Upp Upp Zhi Pro Fac Upp Upp War Pro Res Qua Frg Combat Hostiles Destroyed 243 | . 5 15 10 8 31 27 3 . 1 8 5 2 10 2 1 3 . 1 3 . 2 47 15 5 3 36 Melee 14 | . . . . . 1 2 . . . . . . . . . . . . . . . . . . 3 8 Guns 106 | . 5 . 8 3 29 25 3 . 1 7 5 2 10 . . . . 1 3 . 2 . . . . 2 Cannons 19 | . . 11 2 . . . . . . . . . . 1 . . . . . . . . . 1 . 4 AOE 101 | . . 4 . 5 . . . . . . . . . . 1 3 . . . . . 47 15 4 . 22 Classes Destroyed 29 | 2 4 5 1 . 3 1 . . . 1 1 . 1 . . . . 1 . . . 4 1 . . 4 Worker 23 | . . 2 3 1 5 2 . . 4 . . . . 3 . . . . 1 . . . . 1 1 . Builder 14 | . . 1 1 . 1 3 1 . . 3 . . 1 1 . . . . 2 . . . . . . . Tunneler 13 | 5 . 1 . . 4 . . . . . . . . 2 . . . . . . . . . 1 . . Hauler 27 | . 2 . 5 . 6 5 . . 2 . . . . 1 . . . . 1 . . . . 3 2 . Recycler 15 | 1 1 2 2 . 3 2 2 . . . . . 1 1 . . . . . . . . . . . . Mechanic 3 | . . . . . 1 . . . . . . . . 1 . . . . . . . 1 . . . . Operator 10 | . 1 . 1 . 1 2 . . . . . 4 . . . . . . 1 . . . . . . . Drone 11 | . . . . . . . . . . . . . . . . . . . . . . . 2 . . 9 Watcher 13 | . 1 . . . 2 1 . . 2 1 . . 2 . . . . . . . . . . 1 1 2 Swarmer 54 | . . 3 . 3 4 3 . . . 3 4 . . . . . . . . . 2 16 11 . . 5 Saboteur 2 | . . . . . . . . . . . . . . . . . . . . . . . . . . 2 Grunt 69 | . 5 2 4 5 11 13 . . . . . . 5 . . 2 . . . . . 17 . 3 . 2 Brawler 2 | . . . . . . . . . . . . . . . . 1 . . . . . . . . . 1 Duelist 2 | . . . . . . 2 . . . . . . . . . . . . . . . . . . . . Protector 6 | . . . . . . . . . . . . . . . . . . . . . . 5 . . . 1 Sentry 36 | . . . 6 . 6 8 3 . 1 4 . 2 2 1 . . . . 1 . . . . . . 2 Demolisher 4 | . . 2 . . . . . . . . . . . . . . . . . . . 2 . . . . Specialist 9 | . . . . . 8 . . . . . . . . . . . . . . . . 1 . . . . Hunter 9 | . . . . . 2 1 . . . 1 . . . 1 . . . . . . . 2 . 1 . 1 Programmer 14 | . . . . . . . . . . . . . 2 . 1 . . . 2 . . 1 2 1 3 2 Behemoth 1 | . . . . . . . . . . . . . . . . . . 1 . . . . . . . . Cetus Guard 1 | . . . . . . . . . . . 1 . . . . . . . . . . . . . . . Lightning 1 | . . . . . . . . . . . . . 1 . . . . . . . . . . . . . Decapitator 2 | . . . . . . . . . . . . . . . . . . . . . . . . . . 2 Striker 2 | . . . . . . . . . . . . . . . . . . . . . . 2 . . . . Executioner 7 | . . . . . . . . . . . . . . . . . . . . . . 1 . . . 6 Alpha 7 2 | . . . . . . . . . . . . . . . . . . . . . . . . . . 2 Scrapoid 1 | . . . . . . . . . . . . . . . . . . . . . . . . . . 1 Botcube 1 | . . . . . . . . . . . 1 . . . . . . . . . . . . . . . Decomposer 2 | . . . . . . . . . . . . . . . . 1 . . . . 1 . . . . . Packrat 2 | . . . . . . . . . . . . . . . . 2 . . . . . . . . . . Assembled 8 | . . 8 . . . . . . . . . . . . . . . . . . . . . . . . Thug 5 | . . . . . 1 . . . . . . . . . . . . . . . . 4 . . . . Savage 2 | . . . . . . . . . . 1 . . 1 . . . . . . . . . . . . . Mutant 1 | . . . . . . . . . . . . . . . . . . . . . . 1 . . . . Best Kill Streak 12 | 5 4 4 5 3 4 7 3 . 3 2 2 2 4 3 1 3 . 1 4 . 2 12 6 3 2 9 Combat Bots Only 12 | . 3 3 3 3 3 4 2 . 1 2 2 2 4 1 1 3 . 1 2 . 2 12 6 3 2 9 Max Kills in Single Turn 6 | 1 1 2 1 2 2 2 1 . 2 2 1 1 2 2 1 1 . 1 2 . 1 6 3 2 1 2 Gunslinging 1 | . . . . 1 . . . . . . . . . . . . . . . . . . . . . . Exploded 6 | . . 2 . 2 . . . . . . . . . . 1 1 . . . . . 6 3 1 . 2 Melee 1 | . . . . . 1 1 . . . . . . . . . . . . . . . . . . 1 1 Uniques/NPCs Destroyed 1 | . . . . . . . . . . . 1 . . . . . . . . . . . . . . . A7 (-6/Cetus) Combat | -11 -10 -10 -9 -9 -8 -8 -8 -8 -6 -6 -6 -6 -6 -5 -5 -5 -5 -4 -4 -4 -4 -4 -3 -3 -3 -3 -------- Run | Yrd Mat Min Mat Min Mat Sto Rec Scr Fac Ext Cet Arc Hub Fac Upp Upp Zhi Pro Fac Upp Upp War Pro Res Qua Frg Hostile Shots Fired 1348 | . 37 55 56 16 215 128 16 . 19 185 16 4 206 4 4 5 . 12 29 2 10 48 1 6 35 239 Missed 406 | . 11 17 17 4 54 28 4 . 10 69 7 1 59 2 3 1 . 6 9 1 5 22 1 3 4 68 Hits 942 | . 26 38 39 12 161 100 12 . 9 116 9 3 147 2 1 4 . 6 20 1 5 26 . 3 31 171 Melee 25 | . . 6 . . . 3 . . . . . . . . . . . . . . . . . . . 16 Projectile 917 | . 26 32 39 12 161 97 12 . 9 116 9 3 147 2 1 4 . 6 20 1 5 26 . 3 31 155 AOE 9 | . . 6 . . . . . . . . . . . . . . . . . . . 1 . . . 2 Critical Strikes 47 | . 1 2 1 . 5 6 . . . . . . 5 . . . . . 1 . . 1 . 1 2 22 Actively Blocked 17 | . . . . . . . . . . . . . . . . . . . . . . . . . . 17 Part Disruptions 1 | . . . . . . . . . . . . . 1 . . . . . . . . . . . . . Damage Taken 18286 | . 348 792 557 247 2163 1322 187 . 453 730 197 35 2566 81 20 175 . 128 421 16 77 897 . 63 754 6057 Core 2602 | . 58 120 65 19 227 107 15 . 5 106 . . 298 . . . . . 68 . . 277 . . 25 1212 Absorbed by Shields 892 | . . . . . . . . . . 595 57 34 37 . . . . . . . . 169 . . . . Ignored by Resistances 215 | . . . . . 44 . . . 26 31 78 . 36 . . . . . . . . . . . . . Regen/Repaired (Parts) 1679 | . . . . . . . . . 10 87 24 22 95 . . . . . . . . 235 . . 623 583 Core Remaining (%) 66 | 100 . 28 . 79 . . . 36 . . . . 51 . . . . 100 . . . . 70 . . . Volleys Fired 818 | 17 38 47 81 12 154 108 13 1 28 57 19 6 42 5 3 6 . 13 19 1 4 39 19 12 10 64 Largest 2 | 2 2 2 2 2 2 2 2 1 2 2 2 2 2 1 1 1 . 2 2 1 2 1 1 1 1 2 Hottest 152 | 70 120 120 73 53 75 50 50 . 152 152 152 152 152 70 45 45 . 70 70 35 70 46 46 46 40 140 Shots Fired 1391 | 34 76 72 148 17 306 215 27 1 44 89 37 12 70 5 3 6 . 26 36 2 7 39 19 12 10 78 Gun 1148 | 34 70 . 136 9 304 215 27 . 44 89 36 12 70 . . . . 26 36 2 7 2 . . . 29 Cannon 127 | . 6 69 12 . 2 . . . . . . . . 5 . . . . . . . . . 3 10 20 Launcher 105 | . . 3 . 8 . . . . . . . . . . 3 6 . . . . . 33 19 9 . 24 Special 11 | . . . . . . . . 1 . . 1 . . . . . . . . . . 4 . . . 5 Kinetic 953 | 17 25 15 114 9 304 215 27 . 23 57 18 6 49 . . . . 26 36 2 7 . . . . 3 Thermal 278 | 17 41 54 34 . 2 . . . 21 32 18 6 21 . . . . . . . . . . 3 10 19 Explosive 108 | . . 3 . 8 . . . . . . . . . . 3 6 . . . . . 32 19 9 . 28 Electromagnetic 20 | . 10 . . . . . . . . . . . . 5 . . . . . . . . . . . 5 Entropic 28 | . . . . . . . . . . . . . . . . . . . . . . 6 . . . 22 Robot Hit Streak 30 | 18 10 9 11 4 12 30 12 13 13 9 7 4 14 11 . 6 . 15 8 . 3 8 . 4 9 24 Robot Miss Streak 8 | 1 4 3 3 2 8 5 2 . 2 3 3 1 5 . . 6 . 3 1 . 3 2 . . . 6 Penetration Max 2 | . . . . . . . . . . 2 1 . 1 1 . . . . 1 . 1 . . . . 1 Secondary Targets 12 | . . . . 1 2 4 . . . 1 . . 2 . . . . . 1 . . . . . . 1 Max Gunslinging Chain 1 | . . . . 1 1 1 . . . 1 . . 1 . . . . . 1 . . . . . . 1 Capacitor 12 | . . . . . . . . . . . . . . . . . . . . . . . . . . 12 Shots Hit Robots 997 | 27 52 43 96 8 193 143 20 1 21 61 48 23 48 16 . 5 . 20 33 . 8 21 . 21 28 61 Core Hits 698 | 10 18 25 38 16 87 66 8 . 14 24 19 6 30 5 6 22 . 3 15 . 6 140 20 25 7 88 Critical Kills 17 | . 1 . . . 1 . . . 1 1 . 1 4 . . . . . 6 . 2 . . . . . Critical Parts Destroyed 22 | . . . 1 . 2 . . . . 5 . . 1 . . . . 2 10 . . . . . . 1 Critical Strikes 68 | 3 3 1 3 . 3 . . . 1 8 3 1 6 1 . . . 7 17 . 2 1 . 3 3 2 Burn 7 | 3 2 . 2 . . . . . . . . . . . . . . . . . . . . . . . Meltdown 1 | . 1 . . . . . . . . . . . . . . . . . . . . . . . . . Destroy 42 | . . . 1 . 1 . . . 1 8 . 1 5 . . . . 7 16 . 2 . . . . . Blast 1 | . . 1 . . . . . . . . . . . . . . . . . . . . . . . . Smash 2 | . . . . . 2 . . . . . . . . . . . . . . . . . . . . . Sever 14 | . . . . . . . . . . . 3 . 1 1 . . . . 1 . . 1 . 3 3 1 Detonate 1 | . . . . . . . . . . . . . . . . . . . . . . . . . . 1 Melee Attacks 285 | . . . . . 7 16 . . . . 23 17 19 31 10 2 . . 35 3 12 8 . 22 44 36 Impact 7 | . . . . . 7 . . . . . . . . . . . . . . . . . . . . . Slashing 277 | . . . . . . 16 . . . . 23 17 19 31 10 2 . . 35 3 12 8 . 21 44 36 Piercing . | . . . . . . . . . . . . . . . . . . . . . . . . . . . Sneak Attacks 64 | . . . . . . . . . . . 23 10 2 10 . 2 . . 4 . 1 . . 4 2 6 Combat Hostiles . | . . . . . . . . . . . . . . . . . . . . . . . . . . . Follow-up Attacks . | . . . . . . . . . . . . . . . . . . . . . . . . . . . Damage Inflicted 54096 | 288 618 1079 1635 649 3437 2567 381 . 840 2342 2125 1298 2218 1057 172 636 . 150 696 . 348 14070 2027 2054 1792 11617 Guns 15796 | 288 538 . 1359 65 3238 2419 346 . 616 2342 789 278 1447 . . . . 150 263 . 29 . . . . 1629 Cannons 2929 | . 71 863 243 . . . . . . . . . . 280 . . . . . . . . . 47 180 1245 Explosions 26116 | . . 189 . 584 . . . . 224 . . . 498 29 172 494 . . . . . 13931 2027 1315 . 6653 Melee 8713 | . . . . . 156 102 . . . . 1336 1020 258 748 . 142 . . 433 . 319 . . 692 1612 1895 Ramming 208 | . 9 27 33 . 43 46 35 . . . . . 15 . . . . . . . . . . . . . Kinetic 11577 | 112 148 232 1289 65 3238 2419 346 . 296 1594 335 109 875 . . . . 150 263 . 29 . . . . 77 Thermal 5388 | 176 366 631 313 178 . . . . 320 748 454 169 572 29 . . . . . . . . . 47 180 1205 Explosive 20162 | . . 189 . 406 . . . . . . . . . . 172 494 . . . . . 8981 2027 1315 . 6578 Electromagnetic 1267 | . 95 . . . . . . . 224 . . . 498 280 . . . . . . . . . . . 170 Impact 156 | . . . . . 156 . . . . . . . . . . . . . . . . . . . . . Slashing 8891 | . . . . . . 102 . . . . 1336 1020 258 748 . 142 . . 433 . 319 139 . 692 1612 2090 Piercing . | . . . . . . . . . . . . . . . . . . . . . . . . . . . Entropic 6447 | . . . . . . . . . . . . . . . . . . . . . . 4950 . . . 1497 Highest Corruption 17 | . . . 5 5 . 3 3 . 2 2 . . 15 3 . . . . 4 4 4 4 . 2 9 17 Average Corruption 4 | . . . 4 5 . 2 3 . 1 1 . . 6 2 . . . . 3 4 4 4 . 1 6 11 Corruption Purged 5 | . . . . . . . . . . 2 . . . 3 . . . . . . . . . . . . Corruption Blocked . | . . . . . . . . . . . . . . . . . . . . . . . . . . . Effects 180 | . . . 8 17 . 8 14 . 18 6 . . 5 7 . . . . 8 10 15 1 . 1 16 46 Message Errors 40 | . . . 4 4 . 2 3 . 5 3 . . 1 3 . . . . 1 2 2 . . 1 4 5 Matter Fused 34 | . . . 2 2 . . 1 . 1 . . . 2 1 . . . . . 3 3 1 . . 4 14 Heat Flow Errors 22 | . . . 1 2 . 1 3 . 3 1 . . . . . . . . 1 1 1 . . . 3 5 Energy Discharges 35 | . . . 1 4 . 1 3 . 3 1 . . . 1 . . . . 4 2 6 . . . 1 8 Parts Rejected 2 | . . . . . . . . . . . . . 1 . . . . . . . . . . . . 1 Data Loss (minor) 20 | . . . . 2 . 3 2 . 2 . . . . 1 . . . . 1 1 1 . . . 2 5 Data Loss (major) 11 | . . . . 2 . . 1 . 2 1 . . . 1 . . . . 1 . . . . . 2 1 Misfires 5 | . . . . . . . 1 . 1 . . . . . . . . . . 1 . . . . . 2 Alerts 5 | . . . . 1 . 1 . . . . . . . . . . . . . . 2 . . . . 1 Misdirections 2 | . . . . . . . . . . . . . . . . . . . . . . . . . . 2 Weapon Failures 4 | . . . . . . . . . 1 . . . 1 . . . . . . . . . . . . 2 Overload Shots . | . . . . . . . . . . . . . . . . . . . . . . . . . . . Overflow Damage 2569 | . . 38 1 . 66 . . . 6 . 98 375 82 143 . . . . 37 . 104 268 362 33 154 802 Projectiles 138 | . . 30 1 . . . . . . . . . . . . . . . . . . 22 . . 8 77 Explosions 761 | . . 8 . . . . . . 6 . . . 35 . . . . . . . . 246 362 25 . 79 Melee 1670 | . . . . . 66 . . . . . 98 375 47 143 . . . . 37 . 104 . . 8 146 646 Knockbacks 6 | . . 4 1 . 1 . . . . . . . . . . . . . . . . . . . . . Impact 1 | . . . . . 1 . . . . . . . . . . . . . . . . . . . . . Kinetic 5 | . . 4 1 . . . . . . . . . . . . . . . . . . . . . . . Secondary . | . . . . . . . . . . . . . . . . . . . . . . . . . . . Self-Inflicted Damage 825 | . . 26 . 121 . . . . 22 . . . 190 32 . 97 . . . . . 143 . . . 194 Shots 15 | . . 1 . 3 . . . . 1 . . . 2 1 . 4 . . . . . 1 . . . 2 Rammed 26 | 1 1 3 4 . 6 5 3 . . . . . 3 . . . . . . . . . . . . . Targets Rammed 30 | 1 1 4 4 . 6 6 5 . . . . . 3 . . . . . . . . . . . . . Kicked . | . . . . . . . . . . . . . . . . . . . . . . . . . . . Crushed 4 | . . 1 . . . 1 2 . . . . . . . . . . . . . . . . . . . Highest Temperature 490 | 40 354 312 297 196 95 338 226 . 260 357 490 136 304 . 9 38 . . 157 259 180 . . . 144 210 Average Temperature 97 | 20 119 141 52 63 26 81 87 . 92 164 195 62 108 . 6 13 . . 86 133 104 . . . 64 97 Received Heat Transfer 2610 | . 216 39 213 39 504 513 54 . 24 131 . 8 530 9 . 36 . 9 48 . . 27 . . 9 201 Effects 26 | . 5 1 3 . . 3 . . 1 6 5 . 2 . . . . . . . . . . . . . Shutdowns 2 | . 1 . . . . . . . . . 1 . . . . . . . . . . . . . . . Energy Bleed 4 | . . . 1 . . 1 . . . 2 . . . . . . . . . . . . . . . . Interference 17 | . 4 1 2 . . . . . 1 4 3 . 2 . . . . . . . . . . . . . Short Circuit 2 | . . . . . . 2 . . . . . . . . . . . . . . . . . . . . Damage (major) 1 | . . . . . . . . . . . 1 . . . . . . . . . . . . . . . Siege Activations . | . . . . . . . . . . . . . . . . . . . . . . . . . . . Martial Activations . | . . . . . . . . . . . . . . . . . . . . . . . . . . . Shielding Activations . | . . . . . . . . . . . . . . . . . . . . . . . . . . . Robots Disrupted . | . . . . . . . . . . . . . . . . . . . . . . . . . . . Combat Hostiles . | . . . . . . . . . . . . . . . . . . . . . . . . . . . Robots Corrupted 2 | . . . . . 1 . . . . . . . . 1 . . . . . . . . . . . . Combat Hostiles 2 | . . . . . 1 . . . . . . . . 1 . . . . . . . . . . . . Parts Fried 7 | . . . . . 3 . . . . . . . . 1 . . . . . . . . . . . 3 Impact Corruptions 2 | . . . . . 2 . . . . . . . . . . . . . . . . . . . . . Robots Melted 2 | . 1 . . . . . . . . 1 . . . . . . . . . . . . . . . . Combat Hostiles 1 | . . . . . . . . . . 1 . . . . . . . . . . . . . . . . Parts Melted 9 | 2 2 1 1 . . . . . . 2 . . . . . . . 1 . . . . . . . . Heat Transferred 8875 | 740 1184 1332 1073 200 . . . . 500 1075 650 250 825 50 . . . . . . . . . 37 185 774 Parts Sabotaged . | . . . . . . . . . . . . . . . . . . . . . . . . . . . Parts Stolen . | . . . . . . . . . . . . . . . . . . . . . . . . . . . Parts Stripped . | . . . . . . . . . . . . . . . . . . . . . . . . . . . Power Chain Reactions 1 | . . . . . . . . . . . . . . 1 . . . . . . . . . . . . Alert | -11 -10 -10 -9 -9 -8 -8 -8 -8 -6 -6 -6 -6 -6 -5 -5 -5 -5 -4 -4 -4 -4 -4 -3 -3 -3 -3 ------- Run | Yrd Mat Min Mat Min Mat Sto Rec Scr Fac Ext Cet Arc Hub Fac Upp Upp Zhi Pro Fac Upp Upp War Pro Res Qua Frg Maximum Alert Level 4 | . . . . 1 2 2 . . 1 2 2 2 4 2 . . . . . . . . . 2 1 3 Low Security (%) 57 | 100 100 100 100 92 41 11 100 . 74 14 54 49 70 . . . . . 100 . . . . 17 93 5 Level 1 30 | . . . . 7 39 74 . . 25 75 30 45 6 3 . . . . . . . . . 58 6 73 Level 2 11 | . . . . . 18 13 . . . 10 14 4 4 96 . . . . . . . . . 23 . 13 Level 3 . | . . . . . . . . . . . . . . . . . . . . . . . . . . 7 Level 4 . | . . . . . . . . . . . . . 19 . . . . . . . . . . . . . Level 5 . | . . . . . . . . . . . . . . . . . . . . . . . . . . . High Security . | . . . . . . . . . . . . . . . . . . . . . . . . . . . Max Security . | . . . . . . . . . . . . . . . . . . . . . . . . . . . Peak Influence 1247 | 15 65 70 178 235 540 495 177 . 266 441 594 429 1247 615 . . . . 78 . . . . 448 215 781 Initial 576 | . . . . 64 85 223 125 . . 73 227 225 18 576 . . . . . . . . . 153 193 54 Average 191 | 4 12 8 48 71 222 291 129 . 124 260 240 206 329 555 . . . . 18 . . . . 305 163 324 Influence Increases 12667 | 30 206 226 598 369 1013 1033 311 . 497 998 1001 250 1600 272 30 70 . 30 269 15 70 1163 414 609 278 1315 Destroy 0b10 Robot/C 5760 | . 100 140 280 220 660 620 60 . 160 480 440 80 260 40 20 60 . 20 80 . 40 900 280 240 60 520 Destroy 0b10 Robot/NC 720 | 30 25 30 60 5 115 75 15 . 40 35 10 25 40 45 . . . . 20 . . 25 10 30 25 60 Destroy Leader 1116 | . 36 30 110 40 196 152 . . 58 66 40 . 76 22 10 10 . 10 32 . . . 50 58 16 104 Allied During Kill 1385 | . . . 17 13 5 84 . . 26 328 456 96 31 . . . . . . . . 223 74 32 . . Successful Hack 294 | . 14 . 8 . . 3 26 . 28 25 . . 29 53 . . . . 12 . . . . 18 48 30 Select Force Hacks 270 | . . . 60 . . . 210 . . . . . . . . . . . . . . . . . . . Disable Machine 1515 | . . . 45 45 30 45 . . 165 15 30 45 555 . . . . . . . . . . 15 90 435 Anti-Garrison Action 150 | . . . . . . . . . . . . . 150 . . . . . . . . . . . . . Destroy Structure 1067 | . 1 26 3 46 7 9 . . 20 34 25 4 414 52 . . . . 50 . . . . 216 24 136 Partial Spotted 30 | . . . . . . . . . . . . . . 15 . . . . . . . . . . . 15 Lose Combat Pursuer 360 | . 30 . 15 . . 45 . . . 15 . . 45 45 . . . . 75 15 30 15 . . 15 15 Influence Decreases 11922 | 30 206 225 433 316 702 1241 559 74 347 741 844 761 477 1106 357 65 20 30 253 31 64 202 1153 493 525 667 Entered New Map 3446 | . . . 1 102 134 307 197 74 . 77 180 339 35 600 127 4 20 . . 7 . 6 967 75 151 43 Time Decay 6885 | 30 206 195 362 214 548 574 362 . 347 474 464 422 302 356 230 61 . 30 222 24 64 176 186 238 334 464 Lost Part 380 | . . 30 10 . 20 30 . . . 10 . . 100 . . . . . . . . 20 . . . 160 Lost Ally 761 | . . . 60 . . 180 . . . 180 200 . 40 . . . . . 31 . . . . 30 40 . Purge Threat 450 | . . . . . . 150 . . . . . . . 150 . . . . . . . . . 150 . . Squads Dispatched 79 | . 1 . 3 . 14 4 . . 9 3 . . 8 10 . . . . 15 . . . . 3 3 6 Investigation 24 | . . . 2 . 1 . . . 5 1 . . 1 5 . . . . 5 . . . . 1 . 3 Extermination 10 | . . . . . . . . . 2 . . . 1 1 . . . . 2 . . . . 1 2 1 Reinforcement 29 | . 1 . 1 . 8 2 . . . 2 . . 4 2 . . . . 5 . . . . 1 1 2 Assault 8 | . . . . . 1 1 . . 2 . . . 2 2 . . . . . . . . . . . . Garrison 8 | . . . . . 4 1 . . . . . . . . . . . . 3 . . . . . . . Intercept . | . . . . . . . . . . . . . . . . . . . . . . . . . . . Searches Triggered . | . . . . . . . . . . . . . . . . . . . . . . . . . . . Construction Impeded 6 | . . . . . 1 . . . . 2 . . 2 . . . . . . . . . . . . 1 Haulers Reinforced 2 | . . . . . . . . . . . . . . . . . . . 2 . . . . . . . Active Scanning Responses . | . . . . . . . . . . . . . . . . . . . . . . . . . . . Cargo Convoy Interrupts . | . . . . . . . . . . . . . . . . . . . . . . . . . . . Stealth | -11 -10 -10 -9 -9 -8 -8 -8 -8 -6 -6 -6 -6 -6 -5 -5 -5 -5 -4 -4 -4 -4 -4 -3 -3 -3 -3 --------- Run | Yrd Mat Min Mat Min Mat Sto Rec Scr Fac Ext Cet Arc Hub Fac Upp Upp Zhi Pro Fac Upp Upp War Pro Res Qua Frg Distress Signals 26 | . 3 . . 1 3 2 . . . 2 2 . 2 . . . . . 3 . . 1 . 1 1 5 Communications Jammed 23 | . . . . . . . . . . 2 . . . . . . . . 4 . . . . 1 16 . Distress Signals 20 | . . . . . . . . . . 2 . . . . . . . . 1 . . . . 1 16 . Times Spotted 492 | . 12 15 25 8 57 47 3 . 7 26 23 19 23 8 1 3 . 2 16 1 4 99 4 14 10 65 Peak Tracking Total 18 | . 4 3 4 3 8 8 2 . 3 4 5 2 8 3 1 3 . 1 3 1 2 18 3 6 2 11 Tactical Retreats 21 | . 1 . 1 . . 3 . . . 1 . . 2 3 . . . . 4 1 2 1 . . 1 1 ECM-based Alert Blocks 4 | . . . . . . 4 . . . . . . . . . . . . . . . . . . . . Traps | -11 -10 -10 -9 -9 -8 -8 -8 -8 -6 -6 -6 -6 -6 -5 -5 -5 -5 -4 -4 -4 -4 -4 -3 -3 -3 -3 ------- Run | Yrd Mat Min Mat Min Mat Sto Rec Scr Fac Ext Cet Arc Hub Fac Upp Upp Zhi Pro Fac Upp Upp War Pro Res Qua Frg Traps Triggered 18 | . 1 . 3 . 1 3 . . 3 3 . . . 2 . . . . . . . . . . . 2 Indirectly . | . . . . . . . . . . . . . . . . . . . . . . . . . . . Trap Hack Attempts . | . . . . . . . . . . . . . . . . . . . . . . . . . . . Triggered . | . . . . . . . . . . . . . . . . . . . . . . . . . . . Disarmed . | . . . . . . . . . . . . . . . . . . . . . . . . . . . Reprogrammed . | . . . . . . . . . . . . . . . . . . . . . . . . . . . Reused . | . . . . . . . . . . . . . . . . . . . . . . . . . . . Traps Extracted . | . . . . . . . . . . . . . . . . . . . . . . . . . . . Installed . | . . . . . . . . . . . . . . . . . . . . . . . . . . . Triggered . | . . . . . . . . . . . . . . . . . . . . . . . . . . . Machines | -11 -10 -10 -9 -9 -8 -8 -8 -8 -6 -6 -6 -6 -6 -5 -5 -5 -5 -4 -4 -4 -4 -4 -3 -3 -3 -3 ---------- Run | Yrd Mat Min Mat Min Mat Sto Rec Scr Fac Ext Cet Arc Hub Fac Upp Upp Zhi Pro Fac Upp Upp War Pro Res Qua Frg Machines Disabled 109 | . . . 3 3 2 3 . . 11 1 5 3 38 . . . . . . . . 3 . 1 6 30 Max in Single Turn 20 | . . . 1 3 1 1 . . 5 1 . 2 20 . . . . . . . . 2 . . 1 9 Garrison Access 6 | . . . . . . 1 . . 1 . . . 2 . . . . . . . . . . 1 1 . Network Hub 3 | . . . . . . . . . . . . . 3 . . . . . . . . . . . . . Energy Cycler 1 | . . . . . . . . . . 1 . . . . . . . . . . . . . . . . Machines Repaired . | . . . . . . . . . . . . . . . . . . . . . . . . . . . Machines Dismantled . | . . . . . . . . . . . . . . . . . . . . . . . . . . . Machines Sabotaged . | . . . . . . . . . . . . . . . . . . . . . . . . . . . Overloaded Fab Kills . | . . . . . . . . . . . . . . . . . . . . . . . . . . . Hacking | -11 -10 -10 -9 -9 -8 -8 -8 -8 -6 -6 -6 -6 -6 -5 -5 -5 -5 -4 -4 -4 -4 -4 -3 -3 -3 -3 --------- Run | Yrd Mat Min Mat Min Mat Sto Rec Scr Fac Ext Cet Arc Hub Fac Upp Upp Zhi Pro Fac Upp Upp War Pro Res Qua Frg Machines Accessed 113 | . 1 1 12 . 2 8 12 3 10 10 1 . 6 15 1 . 4 . 8 . . 1 . 4 8 6 Terminals 56 | . 1 . 8 . 1 6 5 . 4 9 1 . 5 6 . . . . 2 . . . . 1 4 3 Fabricators 4 | . . . . . . . . . 1 . . . . 2 . . . . 1 . . . . . . . Repair Stations 3 | . . . . . . 1 . . . . . . . . . . . . . . . . . . 2 . Recycling Units 28 | . . . 2 . . . 7 . 5 1 . . . 5 . . . . 4 . . . . 1 . 3 Scanalyzers 8 | . . . 2 . 1 . . . . . . . . 2 . . . . 1 . . . . 1 1 . Garrison Access 4 | . . . . . . 1 . . . . . . 1 . . . . . . . . . . 1 1 . Total Hacks 222 | . 4 1 21 . 4 13 15 18 13 17 2 . 14 23 1 . 17 . 18 . . 1 . 13 17 10 Successful 146 | . 1 1 10 . 3 10 12 18 10 8 1 . 6 17 1 . 17 . 8 . . 1 . 5 11 6 Failed 72 | . 3 . 11 . 1 3 3 . 3 9 1 . 8 5 . . . . 9 . . . . 7 5 4 Catastrophic 8 | . . . 4 . . . . . . 1 . . . . . . . . 1 . . . . 1 . 1 Database Lockouts 4 | . . . . . . . . . . . . . . 1 . . . . 1 . . . . 1 1 . Manual 108 | . 4 . 18 . 1 3 15 . 8 6 1 . 12 13 . . . . 12 . . . . 1 4 10 Terminals 103 | . 4 . 16 . 1 8 7 . 6 14 2 . 13 12 . . . . 5 . . . . 4 6 5 Fabricators 6 | . . . . . . . . . 1 . . . . 2 . . . . 3 . . . . . . . Repair Stations 9 | . . . . . . 2 . . . . . . . . . . . . . . . . . . 7 . Recycling Units 37 | . . . 2 . . . 8 . 6 3 . . . 5 . . . . 7 . . . . 1 . 5 Scanalyzers 21 | . . . 3 . 3 . . . . . . . . 4 . . . . 3 . . . . 6 2 . Garrison Access 8 | . . . . . . 3 . . . . . . 1 . . . . . . . . . . 2 2 . Terminal Hacks 69 | . . 1 . . . 6 . 18 3 7 1 . 3 6 1 . 17 . 2 . . 1 . 2 1 . Record 16 | . . . . . . . . 11 . . . . . . . . 5 . . . . . . . . . Part Schematic 6 | . . . . . . . . . . 1 . . . 1 . . 4 . . . . . . . . . Robot Analysis 11 | . . . . . . . . 7 . . . . . . . . 4 . . . . . . . . . Prototype ID Bank 4 | . . . . . . . . . . . . . . . . . 4 . . . . . . . . . Open Door 13 | . . 1 . . . 4 . . 1 4 1 . . . 1 . . . . . . 1 . . . . Level Access Points 1 | . . . . . . . . . . . . . 1 . . . . . . . . . . . . . Branch Access Points 3 | . . . . . . . . . 1 . . . . 1 . . . . 1 . . . . . . . Recycling Unit Index 2 | . . . . . . . . . 1 . . . . 1 . . . . . . . . . . . . Alert Level 5 | . . . . . . . . . . 2 . . . . . . . . 1 . . . . 1 1 . Unreport Threat 3 | . . . . . . 1 . . . . . . . 1 . . . . . . . . . 1 . . Locate Traps 1 | . . . . . . . . . . . . . 1 . . . . . . . . . . . . . Recall Extermination 1 | . . . . . . . . . . . . . . 1 . . . . . . . . . . . . Hauler Manifests 1 | . . . . . . 1 . . . . . . . . . . . . . . . . . . . . Zone Layout 2 | . . . . . . . . . . . . . 1 1 . . . . . . . . . . . . Fabricator Hacks 4 | . . . . . . . . . 1 . . . . 2 . . . . 1 . . . . . . . Network Status 2 | . . . . . . . . . 1 . . . . 1 . . . . . . . . . . . . Build 2 | . . . . . . . . . . . . . . 1 . . . . 1 . . . . . . . Repair Station Hacks 6 | . . . . . . 1 . . . . . . . . . . . . . . . . . . 5 . Scan Component 4 | . . . . . . 1 . . . . . . . . . . . . . . . . . . 3 . Repair 2 | . . . . . . . . . . . . . . . . . . . . . . . . . 2 . Recycling Unit Hacks . | . . . . . . . . . . . . . . . . . . . . . . . . . . . Scanalyzer 11 | . . . 3 . 3 . . . . . . . . 2 . . . . 1 . . . . 1 1 . Insert Component 2 | . . . 1 . 1 . . . . . . . . . . . . . . . . . . . . . Analyze 3 | . . . 1 . 2 . . . . . . . . . . . . . . . . . . . . . Retrieve Study 6 | . . . 1 . . . . . . . . . . 2 . . . . 1 . . . . 1 1 . Garrison Access Hacks 4 | . . . . . . 1 . . . . . . 1 . . . . . . . . . . 1 1 . Seal Access 4 | . . . . . . 1 . . . . . . 1 . . . . . . . . . . 1 1 . Unauthorized Hacks 52 | . 1 . 7 . . 2 12 . 6 1 . . 2 7 . . . . 4 . . . . 1 3 6 Terminals 25 | . 1 . 5 . . 2 5 . 1 1 . . 2 2 . . . . . . . . . . 3 3 Track 2 | . . . . . . . . . . . . . 1 . . . . . . . . . . . . 1 Assimilate 4 | . . . . . . . . . . . . . . 1 . . . . . . . . . . 3 . Botnet 8 | . 1 . . . . 2 . . 1 1 . . 1 1 . . . . . . . . . . . 1 Operators 1 | . . . . . . . . . . . . . . . . . . . . . . . . . . 1 Skim 10 | . . . 5 . . . 5 . . . . . . . . . . . . . . . . . . . Fabricators . | . . . . . . . . . . . . . . . . . . . . . . . . . . . Repair Stations . | . . . . . . . . . . . . . . . . . . . . . . . . . . . Recycling Units 27 | . . . 2 . . . 7 . 5 . . . . 5 . . . . 4 . . . . 1 . 3 Tunnel 9 | . . . 2 . . . 7 . . . . . . . . . . . . . . . . . . . Fedlink 18 | . . . . . . . . . 5 . . . . 5 . . . . 4 . . . . 1 . 3 Scanalyzers . | . . . . . . . . . . . . . . . . . . . . . . . . . . . Garrison Access . | . . . . . . . . . . . . . . . . . . . . . . . . . . . Data Cores Recovered . | . . . . . . . . . . . . . . . . . . . . . . . . . . . Used . | . . . . . . . . . . . . . . . . . . . . . . . . . . . Hacking Detections 36 | . 1 . 8 . . 2 1 . 5 5 . . 3 4 . . . . 1 . . . . 1 4 1 Full Trace Events 1 | . . . . . . . . . . 1 . . . . . . . . . . . . . . . . Feedback Events . | . . . . . . . . . . . . . . . . . . . . . . . . . . . Feedback Blocked . | . . . . . . . . . . . . . . . . . . . . . . . . . . . Robot Schematics Acquired . | . . . . . . . . . . . . . . . . . . . . . . . . . . . Robots Built 3 | . . . . . . . . . . . . . . . . . . . 3 . . . . . . . Authchips . | . . . . . . . . . . . . . . . . . . . . . . . . . . . Time 93 | . . . . . . . . . . . . . . . . . . . 93 . . . . . . . Total Robot Build Rating 21 | . . . . . . . . . . . . . . . . . . . 21 . . . . . . . Part Schematics Acquired 8 | . . . 1 . 1 . . . . 1 . . . 1 . . 4 . . . . . . . . . Parts Built 2 | . . . . . . . . . . . . . . 2 . . . . . . . . . . . . Authchips . | . . . . . . . . . . . . . . . . . . . . . . . . . . . Time 53 | . . . . . . . . . . . . . . 53 . . . . . . . . . . . . Total Part Build Rating 12 | . . . . . . . . . . . . . . 12 . . . . . . . . . . . . Part Studies Acquired 6 | . . . 1 . . . . . . . . . . 2 . . . . 1 . . . . 1 1 . Parts Repaired 2 | . . . . . . . . . . . . . . . . . . . . . . . . . 2 . Time 158 | . . . . . . . . . . . . . . . . . . . . . . . . . 158 . Parts Recycled . | . . . . . . . . . . . . . . . . . . . . . . . . . . . Recycled Matter . | . . . . . . . . . . . . . . . . . . . . . . . . . . . Retrieved Matter . | . . . . . . . . . . . . . . . . . . . . . . . . . . . Retrieved Components . | . . . . . . . . . . . . . . . . . . . . . . . . . . . Parts Scanalyzed 2 | . . . 1 . 1 . . . . . . . . . . . . . . . . . . . . . Part Schematics Acquired 2 | . . . 1 . 1 . . . . . . . . . . . . . . . . . . . . . Parts Damaged . | . . . . . . . . . . . . . . . . . . . . . . . . . . . Bothacking | -11 -10 -10 -9 -9 -8 -8 -8 -8 -6 -6 -6 -6 -6 -5 -5 -5 -5 -4 -4 -4 -4 -4 -3 -3 -3 -3 ------------ Run | Yrd Mat Min Mat Min Mat Sto Rec Scr Fac Ext Cet Arc Hub Fac Upp Upp Zhi Pro Fac Upp Upp War Pro Res Qua Frg Used RIF Installer . | . . . . . . . . . . . . . . . . . . . . . . . . . . . Robots Hacked 1 | . . . . . . . . . . . . . . . . . . . . . . . . 1 . . Non-combat . | . . . . . . . . . . . . . . . . . . . . . . . . . . . Combat 1 | . . . . . . . . . . . . . . . . . . . . . . . . 1 . . Robot Hacks Applied 1 | . . . . . . . . . . . . . . . . . . . . . . . . 1 . . parse_system 1 | . . . . . . . . . . . . . . . . . . . . . . . . 1 . . Relay Couplers Released 2 | . . . . . . . . . 2 . . . . . . . . . . . . . . . . . Machine Destruction 2 | . . . . . . . . . 2 . . . . . . . . . . . . . . . . . Fabnet Peak Effective % . | . . . . . . . . . . . . . . . . . . . . . . . . . . . Robots Rewired 21 | . . . . . . . . . . 16 . . . . . . . . . . . 5 . . . . Allies Hacked 2 | . . . . . . . . . . . . . . . . . . . 2 . . . . . . . Hacks Repelled . | . . . . . . . . . . . . . . . . . . . . . . . . . . . Allies | -11 -10 -10 -9 -9 -8 -8 -8 -8 -6 -6 -6 -6 -6 -5 -5 -5 -5 -4 -4 -4 -4 -4 -3 -3 -3 -3 -------- Run | Yrd Mat Min Mat Min Mat Sto Rec Scr Fac Ext Cet Arc Hub Fac Upp Upp Zhi Pro Fac Upp Upp War Pro Res Qua Frg Total Allies 57 | . . 3 . 2 . 10 . 1 . 23 6 . . 1 . . . . 3 . . 6 . . 2 . Largest Group 14 | . . 3 3 2 1 10 . 1 1 14 13 5 4 1 1 1 1 1 4 . . 6 3 3 2 . Highest-Rated Group 850 | . . 40 40 48 31 173 . 87 87 575 850 470 381 10 10 10 10 10 154 . . 372 197 197 84 . Highest-Rated Ally 169 | . . 16 16 31 31 29 . 87 87 159 169 169 169 10 10 10 10 10 48 . . 100 100 100 84 . Initial UFD Resources 103 | . . . . . . . . . 23 43 43 43 43 47 67 67 67 71 71 89 89 89 93 93 103 103 Total Orders 61 | . . . . . . . . 1 . . 16 . . 1 8 4 1 8 2 . . 10 2 7 1 . STAY 31 | . . . . . . . . 1 . . 5 . . 1 4 2 1 4 1 . . 6 1 4 1 . ROAM 4 | . . . . . . . . . . . 4 . . . . . . . . . . . . . . . FOLLOW 24 | . . . . . . . . . . . 6 . . . 4 2 . 4 1 . . 3 1 3 . . AID 2 | . . . . . . . . . . . 1 . . . . . . . . . . 1 . . . . Ally Attacks 451 | . . . 36 7 11 37 . . 15 140 106 9 18 . . . . . 20 . . 7 7 35 3 . Total Damage 11382 | . . . 373 198 107 508 . . 494 3219 3669 565 945 . . . . . 722 . . 125 36 389 32 . Kills 86 | . . . 4 4 2 5 . . 7 20 21 3 8 . . . . . 1 . . 2 1 7 1 . Allies Corrupted 1 | . . . . . . . . . . . . . . . . . . . . . . . . . 1 . Allies Melted 2 | . . . . . . . . . . . . . 1 . . . . . . . . 1 . . . . Intel | -11 -10 -10 -9 -9 -8 -8 -8 -8 -6 -6 -6 -6 -6 -5 -5 -5 -5 -4 -4 -4 -4 -4 -3 -3 -3 -3 ------- Run | Yrd Mat Min Mat Min Mat Sto Rec Scr Fac Ext Cet Arc Hub Fac Upp Upp Zhi Pro Fac Upp Upp War Pro Res Qua Frg Active Infowar (turns) 18409 | 23 885 1495 1495 656 2658 68 . . 1034 938 71 72 505 812 482 378 98 618 740 434 719 1399 388 514 756 1171 Optics 8403 | . . . . . . . . . . . . . 18 812 482 378 98 618 740 434 719 1275 388 514 756 1171 Sensors 10201 | . . . . . . . . . 902 901 71 72 487 806 482 347 98 618 740 434 719 1251 388 512 626 747 Terrain 1781 | . . . . . . . . . . . . . . 26 . . . . . . . . . 475 604 676 Traps 82 | . . . . . . . . . 82 . . . . . . . . . . . . . . . . . Seismic 12072 | 23 885 1495 1493 656 1023 . . . . . . . . 86 482 378 97 618 713 434 719 1056 276 513 754 371 T.N.C. 2269 | . . . 634 . 1635 . . . . . . . . . . . . . . . . . . . . . Jamming 4869 | . . . . . . . . . 50 37 . . . 374 . . 45 618 740 434 719 649 1 349 480 373 ECM 68 | . . . . . . 68 . . . . . . . . . . . . . . . . . . . . Robot Analysis Total 11 | . . . . . . . . 7 . . . . . . . . 4 . . . . . . . . . Derelict Logs Recovered 11 | . . 1 . 2 . . . . . . . . . . 1 2 . 1 . 2 2 . . . . . Drone Launches . | . . . . . . . . . . . . . . . . . . . . . . . . . . . Drone Recoveries . | . . . . . . . . . . . . . . . . . . . . . . . . . . . Exploration | -11 -10 -10 -9 -9 -8 -8 -8 -8 -6 -6 -6 -6 -6 -5 -5 -5 -5 -4 -4 -4 -4 -4 -3 -3 -3 -3 ------------- Run | Yrd Mat Min Mat Min Mat Sto Rec Scr Fac Ext Cet Arc Hub Fac Upp Upp Zhi Pro Fac Upp Upp War Pro Res Qua Frg Turns Passed 26713 | 110 910 1531 1496 656 2829 1752 827 2925 1090 1205 1162 1034 676 812 482 378 98 618 740 434 719 1399 388 514 756 1172 Spaces Moved 19793 | 67 410 621 772 383 1150 771 503 2261 847 731 724 245 407 1245 868 656 145 684 867 484 619 1311 551 694 924 853 Core 100 | 54 . 13 . . . . . . . . . 31 . . . . . . . . . . . . . 2 Treads 4826 | 13 410 453 614 383 1150 771 503 529 . . . . . . . . . . . . . . . . . . Legs 33 | . . . . . . . . . . . . . . . . . . . . . . . . . . 33 Wheels 5214 | . . 155 158 . . . . 1732 847 731 724 214 394 . . . . . . . . . . . . 259 Hover 9620 | . . . . . . . . . . . . . 13 1245 868 656 145 684 867 484 619 1311 551 694 924 559 Flight . | . . . . . . . . . . . . . . . . . . . . . . . . . . . Fastest Speed 40 | 50 160 100 100 160 155 156 156 101 101 103 103 103 103 43 50 50 50 50 59 59 107 45 45 45 40 45 Average Speed 100 | 71 160 156 150 163 156 161 156 113 106 104 111 336 103 48 50 50 50 55 59 84 107 79 55 45 45 86 Slowest Speed 1950 | 160 160 550 240 240 162 240 156 156 116 115 147 1950 200 98 50 50 50 59 59 107 107 107 107 107 118 1250 Overloaded Moves 22 | . . . . . . . . . . . . . . . . . . . . . . . . . 12 10 Propulsion Burnouts . | . . . . . . . . . . . . . . . . . . . . . . . . . . . Robots Hopped . | . . . . . . . . . . . . . . . . . . . . . . . . . . . Potential Cave-ins . | . . . . . . . . . . . . . . . . . . . . . . . . . . . Cave-ins Triggered . | . . . . . . . . . . . . . . . . . . . . . . . . . . . Teleports 1 | . . . . . . . . . . . . . . . . . . . . . . . . . . 1 Exploration Rate (%) 65 | 3 58 94 70 80 56 94 99 87 25 86 67 83 49 37 93 76 61 71 30 66 73 77 81 14 92 40 Regions Visited 26 Branch Regions 19 Pre-discovered Areas 17 | . . . 3 1 . . 9 . 1 . . . . . . . 3 . . . . . . . . . Known Exits Taken 20 | . . . . 1 1 . . 1 1 1 1 1 1 1 1 1 1 1 1 1 1 1 1 1 1 . Unknown Exits Taken 6 | 1 1 1 1 . . 1 1 . . . . . . . . . . . . . . . . . . . Scrap Searched 22 | . . 2 . . . . . 6 . . . . . . 4 1 . 5 . 1 2 . 1 . . . Spaces Dug 125 | . . . . . 1 5 . . 15 . . . 12 18 10 . . . 23 3 5 6 . 4 11 12 Terrain Destroyed 1767 | . . 28 2 66 3 5 . . 30 36 8 3 558 25 53 137 . . 24 3 5 264 291 109 12 105 Melee 106 | . . . . . 1 5 . . . . . . 10 18 10 . . . 23 3 5 6 . 2 11 12 Projectile 117 | . . 2 2 . 2 . . . 30 36 8 3 27 . . . . . . . . 1 . 2 1 3 AOE 1543 | . . 26 . 66 . . . . . . . . 521 7 43 137 . . . . . 257 291 105 . 90 Terrain Rammed . | . . . . . . . . . . . . . . . . . . . . . . . . . . . Walls Destroyed . | . . . . . . . . . . . . . . . . . . . . . . . . . . . Machines Disabled . | . . . . . . . . . . . . . . . . . . . . . . . . . . . Actions | -11 -10 -10 -9 -9 -8 -8 -8 -8 -6 -6 -6 -6 -6 -5 -5 -5 -5 -4 -4 -4 -4 -4 -3 -3 -3 -3 --------- Run | Yrd Mat Min Mat Min Mat Sto Rec Scr Fac Ext Cet Arc Hub Fac Upp Upp Zhi Pro Fac Upp Upp War Pro Res Qua Frg Total 25247 | 97 591 1104 984 398 1954 1113 528 2629 1014 1119 1036 421 581 1416 893 691 168 897 1008 501 649 1643 625 851 1164 1172 Wait 3122 | . 116 415 49 1 544 138 1 276 88 233 168 145 82 57 12 25 13 195 65 12 12 126 46 63 145 95 Move 19768 | 67 409 620 771 382 1149 770 502 2260 846 730 723 244 406 1244 867 655 144 683 866 483 618 1310 550 693 923 853 Hop . | . . . . . . . . . . . . . . . . . . . . . . . . . . . Pick Up 283 | 6 9 6 25 1 17 8 1 41 15 1 36 2 7 25 . . 2 1 3 . 1 37 1 12 7 19 Fast Attach 73 | 3 4 2 5 . 4 3 . . 4 . 5 . 1 5 . . 1 . 3 . . . . 8 7 18 Attach 117 | 4 . 4 5 . 5 5 . 7 6 1 1 . 4 18 . . 2 . 1 . . 17 4 6 1 26 Detach 39 | . . . . . . 1 . . 1 . . . . 4 . . 2 . . . . 9 4 3 2 13 Swap 289 | . 7 5 20 1 38 38 3 4 14 20 22 5 10 4 1 3 4 3 11 1 2 28 . 15 13 17 Drop 303 | . 7 1 24 1 30 18 3 40 12 1 39 2 7 23 . . . 1 5 1 . 36 1 17 12 22 Fire 818 | 17 38 47 81 12 154 108 13 1 28 57 19 6 42 5 3 6 . 13 19 1 4 39 19 12 10 64 Melee 285 | . . . . . 7 16 . . . . 23 17 19 31 10 2 . . 35 3 12 8 . 22 44 36 Ram 3 | . . . . . . . . . . . . . 3 . . . . . . . . . . . . . Kick . | . . . . . . . . . . . . . . . . . . . . . . . . . . . Crush 26 | . 1 4 4 . 6 6 5 . . . . . . . . . . . . . . . . . . . Escape Stasis 25 | . . . . . . . . . . 16 . . . . . . . . . . . . . . . 9 Rewire 95 | . . . . . . 2 . . . 60 . . . . . . . . . . . 33 . . . . Trap . | . . . . . . . . . . . . . . . . . . . . . . . . . . . Miscellaneous 1 | . . . . . . . . . . . . . . . . . . 1 . . . . . . . . Route ------- -11/Scrapyard -10/Materials (discovered 2 exits: *Mat / *Min) -10/Mines (discovered 2 exits: *Mat x2) -9/Materials (discovered 4 exits: *Mat x3 / *Min) -9/Mines (discovered 2 exits: *Mat x2) -8/Materials (discovered 4 exits: *Fac x2 / *Sto x2) -8/Storage (discovered 2 exits: *Fac / *Rec) -8/Recycling (discovered 2 exits: *Fac / *Scr) -8/Scraptown (discovered 2 exits: *Fac x2) -6/Factory (discovered 7 exits: Fac x3 / *Low x2 / *Ext x2) -6/Extension (discovered 2 exits: *Fac / *Cet) -6/Cetus (discovered 2 exits: *Fac / *Arc) -6/Archives (discovered 2 exits: *Fac / *Hub) -6/Hub_04(d) (discovered 4 exits: *Fac x4) -5/Factory (discovered 4 exits: *Fac x2 / *Upp x2) -5/Upper Caves -5/Upper Caves (discovered 2 exits: *Fac / *Zhi) -5/Zhirov -4/Proximity Caves -4/Factory (discovered 2 exits: *Upp x2) -4/Upper Caves -4/Upper Caves (discovered 2 exits: *Res / *War) -4/Warlord -3/Proximity Caves -3/Research (discovered 3 exits: *Res / *Qua x2) -3/Quarantine (discovered 3 exits: *Res / *Sec / *Frg) -3/Protoforge History --------- Turn | Location | Event 8 | -11/Scrapyard | Discovered new exit (range 15) 111 | -11/Scrapyard | Entered Materials 315 | -10/Materials | Build established: Mutant 672 | -10/Materials | Discovered new exit (range 12) 920 | -10/Materials | Discovered new exit (range 9) 1021 | -10/Materials | Entered Mines 1089 | -10/Mines | Learned Materials terminal intel 1102 | -10/Mines | Discovered new exit (range 8) 1251 | -10/Mines | Met a Derelict who couldn't figure out how to use a Trap Extractor 1737 | -10/Mines | Discovered new exit (range 15) 2073 | -10/Mines | Assembled infested the area 2078 | -10/Mines | Assisted by a Guerilla fighting off Assembled 2141 | -10/Mines | Core integrity fell below 50% 2312 | -10/Mines | Lost 3 parts (1n2w) 2503 | -10/Mines | Assisted by bots powering up and referring to "LRC-V3" 2552 | -10/Mines | Entered Materials 2552 | -9/Materials | Accompanied by 3 allies 2552 | -9/Materials | Evolved 2 slots: Propulsion x1, Utility x1 2553 | -9/Materials | Loaded intel: 12 terminal locations 2998 | -9/Materials | Discovered new exit (range 10) 3264 | -9/Materials | Discovered new exit (range 9) 3834 | -9/Materials | Identified exit to Materials 3940 | -9/Materials | Learned location of 2 exits from Materials 3959 | -9/Materials | Learned 4 Recycling zone layouts 4048 | -9/Materials | Entered Mines 4296 | -9/Mines | Learned Materials security intel 4370 | -9/Mines | Discovered exit to Materials (range 8) 4402 | -9/Mines | Build established: Scavenger-Mutant 4469 | -9/Mines | Found a hidden stash of uninstalled traps 4704 | -9/Mines | Entered Materials 4704 | -8/Materials | Accompanied by 1 ally 4704 | -8/Materials | Evolved 2 slots: Propulsion x1, Utility x1 4705 | -8/Materials | Identified exit to Factory 4705 | -8/Materials | Identified exit to Storage 4709 | -8/Materials | Led the pair of lost Derelicts to an unsafe place 4754 | -8/Materials | Found Prototype Launcher 4754 | -8/Materials | Identified Rocket Array 4759 | -8/Materials | Found Rocket Array 5117 | -8/Materials | Build established: Mutant 5561 | -8/Materials | Garrison activated, responded to threat 5901 | -8/Materials | Discovered exit to Storage (range 7) 6212 | -8/Materials | Build established: Scavenger-Mutant 6323 | -8/Materials | Discovered exit to Factory (range 16) 6817 | -8/Materials | Garrison activated, responded to threat 7021 | -8/Materials | Build established: Mutant 7475 | -8/Materials | Build established: Scavenger-Mutant 7504 | -8/Materials | First assault squad dispatched 7533 | -8/Materials | Entered Storage 8036 | -8/Storage | Core integrity fell below 50% 8173 | -8/Storage | Used back door to open Recycling access 8173 | -8/Storage | Discovered new exit (range 5) 8291 | -8/Storage | Garrison activated, responded to threat 8774 | -8/Storage | Discovered exit to Factory (range 5) 8883 | -8/Storage | Assisted by bots powering up and referring to "LRC-V3" 9133 | -8/Storage | First assault squad dispatched 9203 | -8/Storage | Lost 8 allies 9285 | -8/Storage | Entered Recycling 9286 | -8/Recycling | Met a Zionite searching for Scraptown 9751 | -8/Recycling | Learned Factory emergency access door positions 9764 | -8/Recycling | Discovered new exit (range 15) 9782 | -8/Recycling | Learned location of 2 exits from Lower Caves 9803 | -8/Recycling | Learned Storage trap positions 9817 | -8/Recycling | Learned location of 2 exits from Factory 9818 | -8/Recycling | Learned Storage terminal intel 9819 | -8/Recycling | Learned location of Zion (-7) 9832 | -8/Recycling | Learned Storage trap positions 10071 | -8/Recycling | Scanned before Scraplab entrance 10095 | -8/Recycling | Entered Scraplab 10109 | -8/Recycling | Discovered new exit (range 3) 10112 | -8/Recycling | Entered Scraptown 10112 | -8/Scraptown | System corruption cleaned by C-Scrubber 10113 | -8/Scraptown | Identified exit to Factory 10356 | -8/Scraptown | Visited Cyclists 10371 | -8/Scraptown | Visited Red Mages 10396 | -8/Scraptown | Visited Junk Repository 10420 | -8/Scraptown | Visited Shadow of the Wyrm 10459 | -8/Scraptown | Visited Assassins FH 10473 | -8/Scraptown | Visited UFD Registry 10473 | -8/Scraptown | Registered with UFD as "Gammabucket" 10509 | -8/Scraptown | Visited Scrapoid Research Area 10551 | -8/Scraptown | Visited Botcube Research 10580 | -8/Scraptown | Visited Scrap Suit Storage 10688 | -8/Scraptown | Visited Curators Association 10736 | -8/Scraptown | Visited Derelict Rescue Squad 10757 | -8/Scraptown | Visited Science Testing Area 10779 | -8/Scraptown | Visited Analyses Database 10814 | -8/Scraptown | Visited DA-N13 Charitable Foundation 10822 | -8/Scraptown | Found DCF Scrap (30 items) 10863 | -8/Scraptown | Visited Chapter 10 10897 | -8/Scraptown | Visited Modified Component R&D 11083 | -8/Scraptown | Found Unknown Device 11085 | -8/Scraptown | Found Unknown Device 11087 | -8/Scraptown | Found Unknown Device 11186 | -8/Scraptown | Entered Cyclist Reading Room 11235 | -8/Scraptown | Build established: Mutant 11593 | -8/Scraptown | Found Lrg. Botcube 12363 | -8/Scraptown | Lrg. Botcube activated 12399 | -8/Scraptown | Lrg. Botcube completed mutation into treaded form, armed with 4 guns 12469 | -8/Scraptown | Found DRS Beacon 12584 | -8/Scraptown | Attached CPS modules to *minus delay cap 12985 | -8/Scraptown | Met Optimus 12985 | -8/Scraptown | Accepted into 0bPrime 13037 | -8/Scraptown | Entered Factory 13037 | -6/Factory | Accompanied by 1 ally 13037 | -6/Factory | Evolved 4 slots: Utility x4 13038 | -6/Factory | Identified exit to Factory 13038 | -6/Factory | Identified exit to Extension 13038 | -6/Factory | Identified Scrap Suit (x3) 13144 | -6/Factory | Discovered new exit (range 6) 13177 | -6/Factory | Identified exit to Lower Caves 13466 | -6/Factory | Loaded intel: 8 recycling unit locations 13566 | -6/Factory | Build established: Scrapper 13596 | -6/Factory | Learned location of Protoforge (-3) 14127 | -6/Factory | Entered Extension 14127 | -6/Extension | Accompanied by 1 ally 14451 | -6/Extension | Rescued a captive Derelict 14526 | -6/Extension | Build established: Commander-Scrapper 14818 | -6/Extension | Spotted B-75 Beast 14836 | -6/Extension | Allies destroyed B-75 Beast 14836 | -6/Extension | Spotted B-75 Beast 14853 | -6/Extension | Allies destroyed B-75 Beast 14870 | -6/Extension | Lost 6 allies 15065 | -6/Extension | Rescued a captive Derelict 15066 | -6/Extension | Rescued a captive Derelict 15094 | -6/Extension | Rescued a captive Derelict 15098 | -6/Extension | Rescued a captive Derelict 15110 | -6/Extension | Rescued a captive Derelict 15133 | -6/Extension | Energy Cycler disabled 15138 | -6/Extension | Rescued a captive Derelict 15145 | -6/Extension | Rescued A7 15241 | -6/Extension | Discovered exit to Factory (range 10) 15242 | -6/Extension | Discovered new exit (range 6) 15251 | -6/Extension | Identified exit to Cetus 15332 | -6/Extension | Entered Cetus 15332 | -6/Cetus | Accompanied by 13 allies (A7) 15337 | -6/Cetus | Acquired a Cetus Manufacturing Module code from A7 15355 | -6/Cetus | Spotted Cetus Guard 15355 | -6/Cetus | Spotted Cetus Guard 15356 | -6/Cetus | Spotted Cetus Guard 15357 | -6/Cetus | Spotted Cetus Guard 15362 | -6/Cetus | Destroyed Cetus Guard 15369 | -6/Cetus | Allies destroyed Cetus Guard 15388 | -6/Cetus | Allies destroyed Cetus Guard 15413 | -6/Cetus | Lost 6 allies 15463 | -6/Cetus | Started Cetus Manufacturing Module 15474 | -6/Cetus | Escorted A7 to Cetus Mainframe 15488 | -6/Cetus | Manufactured an Enhanced Grunt 15513 | -6/Cetus | Manufactured an Enhanced Grunt 15538 | -6/Cetus | Manufactured an Enhanced Grunt 15558 | -6/Cetus | Discovered new exit (range 16) 15563 | -6/Cetus | Manufactured an Enhanced Grunt 15588 | -6/Cetus | Manufactured an Enhanced Grunt 15640 | -6/Cetus | Attached CPS modules to A7 15669 | -6/Cetus | Spotted Cetus Guard 15669 | -6/Cetus | Spotted Cetus Guard 15670 | -6/Cetus | Spotted Cetus Guard 15671 | -6/Cetus | Spotted Cetus Guard 15679 | -6/Cetus | Allies destroyed Cetus Guard 15684 | -6/Cetus | Allies destroyed Cetus Guard 15692 | -6/Cetus | Allies destroyed Cetus Guard 15731 | -6/Cetus | Murdered *minus delay cap 15731 | -6/Cetus | Destroyed *minus delay cap 15736 | -6/Cetus | Found Lrg. Botcube 15779 | -6/Cetus | Discovered exit to Factory (range 16) 15788 | -6/Cetus | Met Revision 17 15865 | -6/Cetus | Murdered A7 15868 | -6/Cetus | Extracted ID and sensor layout for unrecognized location from A7's data core 15917 | -6/Cetus | Found Prototype Protection 15917 | -6/Cetus | Identified Med. Regenerative Plating 15998 | -6/Cetus | Build established: Commander-Mutant 16082 | -6/Cetus | Security sweep announced 16139 | -6/Cetus | Cetus Manufacturing Module disabled 16174 | -6/Cetus | Lost 3 allies 16388 | -6/Cetus | Found Prototype Device 16388 | -6/Cetus | Identified Exp. Thermal Shield 16424 | -6/Cetus | Lrg. Botcube activated 16458 | -6/Cetus | Lrg. Botcube completed mutation into treaded form, armed with 4 guns 16471 | -6/Cetus | Identified exit to Archives 16472 | -6/Cetus | Build established: Commander-Scrapper 16494 | -6/Cetus | Entered Archives 16494 | -6/Archives | Accompanied by 5 allies 16545 | -6/Archives | Discovered exit to Factory (range 14) 16559 | -6/Archives | Discovered new exit (range 15) 16915 | -6/Archives | Identified exit to Hub_04(d) 17528 | -6/Archives | Entered Hub_04(d) 17528 | -6/Hub_04(d) | Accompanied by 4 allies 17810 | -6/Hub_04(d) | Discovered exit to Factory (range 5) 17864 | -6/Hub_04(d) | Found Lrg. Botcube 17880 | -6/Hub_04(d) | Discovered exit to Factory (range 12) 18045 | -6/Hub_04(d) | Network Hub disabled 18073 | -6/Hub_04(d) | Network Hub disabled 18073 | -6/Hub_04(d) | Network Hub disabled 18113 | -6/Hub_04(d) | Spotted Lightning 18117 | -6/Hub_04(d) | Spotted Lightning 18120 | -6/Hub_04(d) | Spotted Lightning 18156 | -6/Hub_04(d) | System corruption reached 10% 18173 | -6/Hub_04(d) | Destroyed Lightning 18187 | -6/Hub_04(d) | Found Prototype Energy Cannon 18204 | -6/Hub_04(d) | Entered Factory 18204 | -5/Factory | Evolved 2 slots: Propulsion x2 18208 | -5/Factory | Identified EMDS 18220 | -5/Factory | Lost 10 parts (1p4n3u2w) 18265 | -5/Factory | Identified exit to Upper Caves 18324 | -5/Factory | Fabricated Cmb. Gravmag System (x2) 18357 | -5/Factory | Discovered new exit (range 9) 18373 | -5/Factory | Identified exit to Factory 18457 | -5/Factory | Spotted B-75 Beast 18504 | -5/Factory | First assault squad dispatched 18519 | -5/Factory | Loaded intel: 8 recycling unit locations 18530 | -5/Factory | Found Launcher Loader 18654 | -5/Factory | Central database locked down 18704 | -5/Factory | Discovered exit to Factory (range 18) 18749 | -5/Factory | Build established: Scavenger-Ninja 18772 | -5/Factory | Found Prototype Launcher 18772 | -5/Factory | Identified Smartbomb Launcher 19016 | -5/Factory | Entered Upper Caves 19016 | -5/Upper Caves | Accompanied by 1 ally 19172 | -5/Upper Caves | Spotted B-75 Beast 19323 | -5/Upper Caves | Build established: Scavenger-Scout 19431 | -5/Upper Caves | Learned Factory terminal intel 19469 | -5/Upper Caves | Discovered new exit (range 20) 19497 | -5/Upper Caves | Identified exit to Upper Caves 19498 | -5/Upper Caves | Entered another Upper Caves area 19498 | -5/Upper Caves | Accompanied by 1 ally 19553 | -5/Upper Caves | Discovered exit to Factory (range 11) 19727 | -5/Upper Caves | Learned Factory security intel 19834 | -5/Upper Caves | Spotted B-75 Beast 19838 | -5/Upper Caves | Discovered new exit (range 3) 19839 | -5/Upper Caves | Identified exit to Zhirov 19854 | -5/Upper Caves | Learned 4 Factory zone layouts 19876 | -5/Upper Caves | Entered Zhirov 19876 | -5/Zhirov | Accompanied by 1 ally 19876 | -5/Zhirov | Discovered new exit (range 3) 19886 | -5/Zhirov | Met Zhirov 19897 | -5/Zhirov | Learned location of Testing (-2) 19897 | -5/Zhirov | Learned location of Command (-1) 19900 | -5/Zhirov | Zhirov requested help retrieving the SGEMP Prototype 19909 | -5/Zhirov | Found Alien Artifact 19909 | -5/Zhirov | Identified Integrated Dissipator 19909 | -5/Zhirov | Installed Integrated Dissipator, increased core heat dissipation (+20) 19941 | -5/Zhirov | Found Alien Artifact 19960 | -5/Zhirov | Identified exit to Proximity Caves 19974 | -5/Zhirov | Entered Proximity Caves 19974 | -4/Proximity Caves | Accompanied by 1 ally 20050 | -4/Proximity Caves | Activated DRS Beacon 20199 | -4/Proximity Caves | Spotted B-86 Titan 20201 | -4/Proximity Caves | Build established: Scavenger-Ninja 20292 | -4/Proximity Caves | Lost 3 allies 20303 | -4/Proximity Caves | Destroyed B-86 Titan 20359 | -4/Proximity Caves | Learned Research stockpile data 20506 | -4/Proximity Caves | Build established: Scavenger-Scout 20510 | -4/Proximity Caves | Discovered exit to Factory (range 15) 20592 | -4/Proximity Caves | Entered Factory 20592 | -4/Factory | Accompanied by 1 ally 20592 | -4/Factory | Evolved 2 slots: Utility x2 20595 | -4/Factory | Loaded intel: 26 terminal locations 20763 | -4/Factory | Watched by a mysterious "MATRIX" hacker 20763 | -4/Factory | Central database locked down 20889 | -4/Factory | Identified exit to Upper Caves 20933 | -4/Factory | Loaded intel: 8 recycling unit locations 20948 | -4/Factory | Fabricated L-61 Swordsman? 21106 | -4/Factory | Noticed UFD Elites at a Recycling Unit 21123 | -4/Factory | Garrison activated, responded to threat 21158 | -4/Factory | Lost 3 allies 21332 | -4/Factory | Entered Upper Caves 21373 | -4/Upper Caves | Build established: Scavenger-Ninja 21628 | -4/Upper Caves | Discovered new exit (range 14) 21640 | -4/Upper Caves | Identified exit to Upper Caves 21723 | -4/Upper Caves | Learned Research emergency access door positions 21766 | -4/Upper Caves | Entered another Upper Caves area 21770 | -4/Upper Caves | Build established: Scavenger-Assassin 21796 | -4/Upper Caves | Learned Research stockpile data 21815 | -4/Upper Caves | Discovered new exit (range 14) 21829 | -4/Upper Caves | Identified exit to Research 21978 | -4/Upper Caves | Found DCF Scrap (13 items) 22421 | -4/Upper Caves | Learned Research trap positions 22426 | -4/Upper Caves | Discovered new exit (range 8) 22435 | -4/Upper Caves | Identified exit to Warlord 22461 | -4/Upper Caves | Found Botcube 22485 | -4/Upper Caves | Entered Warlord 22522 | -4/Warlord | System corruption cleaned by Quarantine Array 22684 | -4/Warlord | Found Prototype Special Weapon 22684 | -4/Warlord | Identified RU-N14's Throwing Claymores v3 22688 | -4/Warlord | Found RU-N14's Throwing Claymores v3 22690 | -4/Warlord | Found RU-N14's Throwing Claymores v3 22694 | -4/Warlord | Found RU-N14's Throwing Claymores v3 22698 | -4/Warlord | Found RU-N14's Throwing Claymores v3 22700 | -4/Warlord | Found RU-N14's Throwing Claymores v3 23021 | -4/Warlord | Visited the Vortex Lab 23024 | -4/Warlord | Found Prototype Energy Gun 23024 | -4/Warlord | Identified Vortex Shotgun 23029 | -4/Warlord | Found Vortex Shotgun 23034 | -4/Warlord | Warlord's base attacked by MAIN.C 23034 | -4/Warlord | Found Prototype Energy Gun 23034 | -4/Warlord | Identified Vortex Rifle 23039 | -4/Warlord | Found Vortex Rifle 23041 | -4/Warlord | Found Prototype Launcher 23121 | -4/Warlord | Found Prototype Processor 23123 | -4/Warlord | Found Prototype Device 23124 | -4/Warlord | Identified Thermal Barrier 23129 | -4/Warlord | Found Prototype Device 23129 | -4/Warlord | Identified Exp. Phase Shifter 23157 | -4/Warlord | Identified Exp. Armor Integrity Analyzer 23377 | -4/Warlord | Spotted Executioner 23384 | -4/Warlord | Warlord forces counterattacked 23393 | -4/Warlord | Attached CPS modules to Executioner 23418 | -4/Warlord | Found Prototype Processor 23420 | -4/Warlord | Found Prototype Processor 23426 | -4/Warlord | Spotted Striker 23427 | -4/Warlord | Lost 5 allies 23435 | -4/Warlord | Spotted Striker 23437 | -4/Warlord | Spotted Executioner 23441 | -4/Warlord | Destroyed Striker 23447 | -4/Warlord | Found Prototype Processor 23462 | -4/Warlord | Destroyed 12 combat bots 23491 | -4/Warlord | Lost 5 allies 23534 | -4/Warlord | Spotted Striker 23566 | -4/Warlord | Destroyed 7 combat bots 23579 | -4/Warlord | Lost 10 allies 23664 | -4/Warlord | Spotted Striker 23676 | -4/Warlord | Spotted Striker 23691 | -4/Warlord | Spotted Striker 23709 | -4/Warlord | Warlord base infiltrated, sounded retreat 23709 | -4/Warlord | Identified Vortex Catalyst Activator 23738 | -4/Warlord | Destroyed 7 combat bots 23766 | -4/Warlord | Spotted B-86 Titan 23779 | -4/Warlord | Rebuked by Warlord 23789 | -4/Warlord | Botcube activated 23835 | -4/Warlord | Spotted Executioner 23835 | -4/Warlord | Spotted Executioner 23837 | -4/Warlord | Spotted Striker 23840 | -4/Warlord | Spotted Executioner 23841 | -4/Warlord | Destroyed Executioner 23843 | -4/Warlord | Destroyed Striker 23844 | -4/Warlord | Allies destroyed Executioner 23864 | -4/Warlord | Destroyed 12 combat bots 23867 | -4/Warlord | Discovered new exit (range 12) 23873 | -4/Warlord | Lost 3 allies 23873 | -4/Warlord | Identified exit to Proximity Caves 23884 | -4/Warlord | Entered Proximity Caves 23884 | -3/Proximity Caves | Accompanied by 3 allies 24130 | -3/Proximity Caves | Build established: Scavenger-Scout 24147 | -3/Proximity Caves | Discovered exit to Research (range 19) 24272 | -3/Proximity Caves | Entered Research 24272 | -3/Research | Accompanied by 3 allies 24272 | -3/Research | Evolved 2 slots: Power x1, Utility x1 24273 | -3/Research | Identified exit to Quarantine 24274 | -3/Research | Loaded intel: 81 trap records 24310 | -3/Research | Found Fusion Bomb Launcher 24356 | -3/Research | Discovered new exit (range 22) 24367 | -3/Research | Loaded intel: 5 recycling unit locations 24431 | -3/Research | Found Prototype Launcher 24432 | -3/Research | Found Prototype Launcher 24432 | -3/Research | Identified Adv. Micro-nuke Launcher (x2) 24435 | -3/Research | Found Adv. Micro-nuke Launcher 24445 | -3/Research | Discovered exit to Quarantine (range 22) 24470 | -3/Research | Central database locked down 24778 | -3/Research | Spotted B-90 Cyclops 24786 | -3/Research | Entered Quarantine 24786 | -3/Quarantine | Accompanied by 1 ally 24816 | -3/Quarantine | Found Alien Artifact 24852 | -3/Quarantine | Discovered new exit (range 5) 24853 | -3/Quarantine | Identified exit to Research 24859 | -3/Quarantine | Found Quantum Capacitor 24880 | -3/Quarantine | Build established: Scavenger-Ninja 24944 | -3/Quarantine | Found Alien Slashing Weapon 24944 | -3/Quarantine | Identified Sigix Broadsword 24982 | -3/Quarantine | Central database locked down 25044 | -3/Quarantine | Found Alien Artifact 25044 | -3/Quarantine | Identified Phase Redirector 25300 | -3/Quarantine | Repaired Antigrav Array+ 25330 | -3/Quarantine | Repaired Broken Cld. Antigrav System? 25377 | -3/Quarantine | Found Alien Artifact 25377 | -3/Quarantine | Identified Dimensional Node Initializer 25377 | -3/Quarantine | Initialized slip node 25379 | -3/Quarantine | Found Dimensional Node Initializer 25487 | -3/Quarantine | Found Prototype Processor 25487 | -3/Quarantine | Identified Spectral Analyzer 25506 | -3/Quarantine | Spotted Fortress 25536 | -3/Quarantine | Discovered new exit (range 6) 25536 | -3/Quarantine | Discovered new exit (range 7) 25538 | -3/Quarantine | Identified exit to Section 7 25539 | -3/Quarantine | Identified exit to Protoforge 25542 | -3/Quarantine | Entered Protoforge 25768 | -3/Protoforge | Superfortress began startup sequence 25883 | -3/Protoforge | Spotted AP7-3 25888 | -3/Protoforge | Identified Subatomic Replicator 25888 | -3/Protoforge | Used Subatomic Replicator to create Alien Artifact 25898 | -3/Protoforge | Spotted AP7-3 25931 | -3/Protoforge | System corruption reached 10% 25941 | -3/Protoforge | Destroyed AP7-3 25951 | -3/Protoforge | Destroyed AP7-3 25976 | -3/Protoforge | Lost 4 parts (1p1n2u) 26002 | -3/Protoforge | Spotted Decapitator 26002 | -3/Protoforge | Spotted Decapitator 26007 | -3/Protoforge | Spotted EXE-6 26008 | -3/Protoforge | Spotted EXE-6 26024 | -3/Protoforge | Destroyed Decapitator 26036 | -3/Protoforge | Destroyed Decapitator 26077 | -3/Protoforge | UFD initiated attack on Protoforge (Readiness: High) 26077 | -3/Protoforge | Loaded intel: 3 recycling unit locations 26099 | -3/Protoforge | Spotted EXE-6 26100 | -3/Protoforge | Spotted EXE-6 26113 | -3/Protoforge | Optimus greeted in Protoforge 26132 | -3/Protoforge | Found Exp. Core Analyzer 26166 | -3/Protoforge | Found Dimensional Node Initializer 26173 | -3/Protoforge | Initialized slip node 26203 | -3/Protoforge | Forge Plexus network access discovered 26208 | -3/Protoforge | Met 7R-MNS 26227 | -3/Protoforge | Spotted Decapitator 26228 | -3/Protoforge | Spotted Decapitator 26262 | -3/Protoforge | Build established: Scavenger-Gladiator 26305 | -3/Protoforge | UFD reported confirmed Drillbomb installation 26346 | -3/Protoforge | Identified Supercharged TR 26346 | -3/Protoforge | Warped through subspace to slip node 26359 | -3/Protoforge | Spotted Hotshot 26365 | -3/Protoforge | Spotted Executioner 26367 | -3/Protoforge | Found Scrap Suit 26368 | -3/Protoforge | Spotted Immortal 26395 | -3/Protoforge | Found Cep. Zero-point Core 26404 | -3/Protoforge | Found Exp. Core Analyzer 26406 | -3/Protoforge | Found Cep. NT7 Matterbank 26412 | -3/Protoforge | Found Cep. Plasma Driver 26420 | -3/Protoforge | Lost 9 allies 26446 | -3/Protoforge | Found Exp. EM Disruption Field 26459 | -3/Protoforge | Found Exp. Jetlance 26464 | -3/Protoforge | Spotted Executioner 26465 | -3/Protoforge | Spotted Executioner 26473 | -3/Protoforge | Destroyed Executioner 26493 | -3/Protoforge | Core integrity fell below 50% 26497 | -3/Protoforge | Destroyed 9 combat bots 26497 | -3/Protoforge | Spotted Executioner 26499 | -3/Protoforge | Destroyed Executioner 26504 | -3/Protoforge | Spotted Executioner 26526 | -3/Protoforge | Destroyed Executioner 26528 | -3/Protoforge | Destroyed Executioner 26534 | -3/Protoforge | Lost 4 parts (1n2u1w) 26586 | -3/Protoforge | Spotted Executioner 26588 | -3/Protoforge | Spotted Striker 26629 | -3/Protoforge | Destroyed Executioner 26649 | -3/Protoforge | Build established: Scavenger-Mutant 26686 | -3/Protoforge | Spotted Executioner 26687 | -3/Protoforge | Spotted Striker 26688 | -3/Protoforge | Spotted Executioner 26695 | -3/Protoforge | Destroyed Executioner 26696 | -3/Protoforge | Spotted Executioner 26704 | -3/Protoforge | Core integrity fell below 20% 26713 | -3/Protoforge | Released all parts (11) 26714 | -3/Protoforge | Destroyed by Executioner with Helical Railgun Last Messages --------------- 26713_ Released Adv. Targeting Computer. 26713_ Released Ovr. Huge Scrapsphere. 26713_ Released Spectral Analyzer. 26713_ Released Adv. Terrain Scan Processor. 26713_ Released Hcp. Storage Unit. 26713_ Released Adv. Signal Interpreter. 26713_ Released Exp. Coolant Injector. 26713_ Released Mak. Medium Armor Plating. 26713_ Released Graphene Brace. 26713_ N-04 Retriever collects Ovr. Quantum Rifle. 26713_ N-04 Retriever collects Graphene Brace. 26714_ C-45 Heavy ARC bursts open, deploying its payload. 26714_ G-67 Veteran unfolds itself. 26714_ H-77 Assassin unfolds itself. 26714_ P-80 Master unfolds itself. 26714_ H-77 Assassin unfolds itself. 26714_ I-47 Archangel unfolds itself. 26714_ Penetrated by Slug. Map ----- +----------------------------------------------------+ | ##??######??#?#####??##??????????????? | | ######?#####?#???###?????????????????? | | #?##??#??#?##?##?#?##????????????????? | | #####??#####?##?###??#???????????????? | | ######??##?##?#?#????#?#?????????????? | | ****####" #######??#??##?##?###?#??????????????? | | """"### %###?#?####?#?##?###??????????????????? | | ####### "% ##??##?####?#?####??????#????????????? | | ###??## ! ##?###?##??##??#?##?###?#???#????????? | | ??#### %=%######?######?#??##??#???????????????? | | #?### # =#? ###?##?#??##??###??#??????????????? | | ####?# * %# #########?####?####????#???????????? | | #??#?## = # ## #?##?##?########????##?????????? | | ######### ##############################???????? | | [ !%! #???????? | | =[ """ " #???????? | | " *p " """"" #???????? | | """ g """" #???????? | | """ g h #???????? | | " h%g " " " " #???????? | | " i """ " "" "" "" #???????? | | " p " " "" "#???????? | | "" # ??????? | | " ! !!!" " + ?? ???? | | " !!!! " + ? ? | | !=|@/ """ # ? | | "" ""! K!!! " """ "# ?? | | """" " "" !% !! "# | | " % """ n # ? | | "" " " " " "# ? ? | | "" " % " # | | "% """"""""" / " " + | | """""""""""""""% " + | | """"""""""""""""" % % " # ? ? | | """"""""""""""""""" "" "# ? | | """"""""""""""""""""" "#" ? | | """""""""""""""""""""" " "#"" ? " | | """"""""""""""""""""""" " "###"F ""# | | """""""""""""""""""""""" "###"""""# | | """""""""""""""""""""""" "" " ###"""""# | | """""""""""""""""""""""" "" " "######### | | """"""""""""""""""""""""" " "######### | | """"""""""""""""""""""""" " "" " ######### | | """"""""""""""""""""""""" " " ######?## | | """"""""""""""""""""""""" " # ####### | | """"""""""""""""""""""""" # ####### | | """"""""""""""""""""""""" ########? | | """"""""""""""""""""""""" " ######?# | | """"""""""""""""""""""""" "" % ######## | | """"""""""""""""""""""""" "" " %######### | +----------------------------------------------------+ Best States ------------- Heat Dissipation 71 Coolant Potential 120 Energy Generation 57 Energy Capacity 470 Matter Stores 500 Matter Capacity 500 Sight Range 24 Robot Scan Range 16 Terrain Scan Range 24 Terrain Scan Density 210 ECM Strength 1 Jamming Range 16 Power Amplification 30 Armor Coverage 450 Resistance: KI 30 Resistance: TH 50 Resistance: EM 15 Weapon Cycling 20 Melee Speed Boost 50 Phase Shifting 20 Evasion (%) 57 Targeting Accuracy 16 Melee Accuracy 24 Core Analysis 6 Recoil Reduction 4 Offensive Hacking 24 Authchip Count 1 Item Schematics ----------------- ECM Suite | -9/Materials | Scanalyzed Hacking Suite | -8/Materials | Scanalyzed Micro-nuke Launcher | -6/Extension | Hacked Gamma Bomb Array | -5/Factory | Hacked Assault Drone Bay | -5/Zhirov | Free Exp. Heat Sink | -5/Zhirov | Free Exp. Optical Array | -5/Zhirov | Free Imp. Arc Thrower | -5/Zhirov | Free Robot Schematics ------------------ None Fabricated ------------ Cmb. Gravmag System | x2 | -5/Factory | Preloaded L-61 Swordsman | x3 | -4/Factory | Preloaded Repaired ---------- Antigrav Array | 26% | -3/Quarantine Cld. Antigrav System | 18% | -3/Quarantine | Broken Studied --------- Arm. Wheel | -9/Materials | Hacked Cmb. Gravmag System | -5/Factory | Hacked Cmb. Airjet | -5/Factory | Hacked Lrn. Missile Launcher | -4/Factory | Hacked Antigrav Array | -3/Research | Hacked Mic. Antimatter Reactor | -3/Quarantine | Hacked Alien Tech Used ----------------- Integrated Dissipator Sigix Broadsword Phase Redirector Dimensional Node Initializer Subatomic Replicator Supercharged TR Achievements -------------- None Challenges ------------ None Game ------ Seed RegenerativeNetworkAxe Manual? 0 Play Time 04:36:27 Cumulative 874.1 hours Start 2026.09.20 @ 11:00:30 End 2026.09.20 @ 17:51:11 Sessions 5 Manual Loads 0 Difficulty Rogue Special Mode None Game No. 477 Rogue 477 Adventurer 0 Explorer 0 Win Type - Total 50 Types 22/5/8/2/1/2/6/2/1/1 Lore% 95 Gallery% 90 Achievement% 84 Wizard Run 0 Options --------- Layout 1 ASCII 0 Keyboard 0 Movement Numpad Keybinds 0 Fullscreen 2 Font 24/Smallcaps Map View 50x35 Zoom Use 0% Tactical HUD 1 Map Filters NONE Filters NONE Steam 1 RUN: 18ded0fb-7fd4-4d28-8dfa-0e2a21736a80